Cogmind - Beta 12 @@@ ROGUE MODE // 2023.04.01 @ 18:31:14 Player: aoemica Result: Escaped singularity! Performance ------------- Evolutions (9) 4500 Regions Visited (35) 7000 Robots Destroyed (103) 515 Value Destroyed (3402) 3402 Prototype IDs (318) 6360 Alien Tech Used (12) 2400 Bonus (30495) 30495 TOTAL SCORE: 54672 Bonus ------- High Alert Combat Kills 495 Follower Combat Kills 3502 Network Hubs Disabled 400 Aligned with FarCom 300 Met Data Miner 300 Met Imprinter 300 Was Imprinted 300 Built Enhanced Grunts 300 Found Hidden Lab 3000 Used Core Reset Matrix 3000 Destroyed MAIN.C Guards 500 Met MAIN.C 5000 Destroyed MAIN.C Shell 5000 Destroyed MAIN.C 10000 Met Architect 300 Destroyed A8 300 Destroyed Architect 15000 Win 3000 Friendly Fire -20502 Cogmind --------- Core Integrity 945/1600 Matter 260/300 Energy 376/380 System Corruption 2% Temperature Cool (12) Movement Flying (77) Ox1 Location Near Former Tau Ceti IV Parts ------- > --- POWER (2) -------- Zero-point Reactor Zero-point Reactor > --- PROPULSION (9) --- Cooled Nuclear Pulse Thruster Cooled Nuclear Pulse Thruster Advanced Surge Thruster Field Propulsion Array Impulse Thruster Array Impulse Thruster Array > --- UTILITY (13) ----- Experimental Targeting Computer Experimental Targeting Computer Experimental Core Analyzer Experimental Core Analyzer Improved Armor Integrity Analyzer Precision Energy Filter Experimental Weapon Cycler Experimental Reaction Control System Experimental Phase Shifter Improved Utility Shielding Zionite Shade Armor Experimental Powered Armor > --- WEAPON (2) ------- AD-0RF's Magmablaster AD-0RF's Magmablaster > --- INVENTORY (5) ---- Zionite Biocell Array (750) Particle Accelerator Advanced Shield Generator Core Cannon Peak State ------------ > --- POWER ------------ Zero-point Reactor Zero-point Reactor > --- PROPULSION ------- Cooled Nuclear Pulse Thruster Cooled Nuclear Pulse Thruster Advanced Surge Thruster Field Propulsion Array Impulse Thruster Array Impulse Thruster Array > --- UTILITY ---------- Experimental Optical Array Experimental Targeting Computer Experimental Targeting Computer Experimental Core Analyzer Experimental Core Analyzer Improved Armor Integrity Analyzer Particle Accelerator Experimental Weapon Cycler Experimental Reaction Control System Experimental Phase Shifter Improved Utility Shielding Zionite Shade Armor Experimental Powered Armor > --- WEAPON ----------- Core Cannon > --- INVENTORY -------- Zionite Biocell Array Precision Energy Filter Advanced Shield Generator Subatomic Replicator AD-0RF's Magmablaster [Rating: 230] Favorites ----------- Power Micro Fission Core Engine Light Ion Engine Power Core Micro Fission Core Reactor Zero-point Reactor Propulsion Cooled Nuclear Pulse Thruster Treads Light Treads Leg Aluminum Leg Hover Unit Airjet Flight Unit Cooled Nuclear Pulse Thruster Utility Enhanced Optical Array Device Advanced Sensor Array Storage Medium Storage Unit Processor Enhanced Optical Array Hackware Advanced Hacking Suite Protection Medium Regenerative Plating Artifact Microwarp Drive Weapon Power Maul Energy Gun Small Laser Energy Cannon Core Cannon Ballistic Gun Light Assault Rifle Launcher Long-range Missile Launcher Special Weapon Improved Plasma Cutter Impact Weapon Power Maul Slashing Weapon Power Sword Piercing Weapon Kinetic Spear Build | -11 -10 -10 -10 -9 -8 -7 -7 -7 -7 -7 -7 -6 -6 -6 -6 -6 -5 -5 -5 -5 -5 -5 -5 -5 -4 -4 -4 -3 -3 -2 -2 -2 -1 -1 -1 ------- Run | Jun Mat Min Exi Min Mat Fac Was Fac Low Low Zio Pro Fac Low Low Dat Pro Fac Was Fac Ext Cet Arc Hub Fac Arm Lab Res Tes Res Qua Sec Acc Com Ac0 Slots Evolved 18 | . . . . . 4 2 . . . . . . 2 . . . . 2 . . . . . . 2 . . 2 . 2 . . 2 . . Power 1 | . . . . . . . . . . . . . . . . . . . . . . . . . 1 . . . . . . . . . . Propulsion 7 | . . . . . 3 . . . . . . . . . . . . 1 . . . . . . 1 . . 1 . . . . 1 . . Utility 10 | . . . . . 1 2 . . . . . . 2 . . . . 1 . . . . . . . . . 1 . 2 . . 1 . . Weapon . | . . . . . . . . . . . . . . . . . . . . . . . . . . . . . . . . . . . . Parts Attached 289 | . . 1 1 2 7 9 2 7 . . . . 24 1 1 . . 10 4 3 9 6 . 5 5 13 12 30 11 6 4 26 9 68 13 Power 21 | . . . . . . . 1 1 . . . . 2 . . . . 1 . . 1 3 . 1 1 1 . 2 . . 2 1 2 2 . Engine . | . . . . . . . . . . . . . . . . . . . . . . . . . . . . . . . . . . . . Core 12 | . . . . . . . 1 1 . . . . 2 . . . . 1 . . 1 1 . 1 1 1 . 1 . . 1 . . . . Reactor 9 | . . . . . . . . . . . . . . . . . . . . . . 2 . . . . . 1 . . 1 1 2 2 . Propulsion 41 | . . . . . 5 4 1 2 . . . . 3 . . . . 3 . 2 1 . . 1 2 4 1 1 3 2 . . 1 5 . Treads 3 | . . . . . 3 . . . . . . . . . . . . . . . . . . . . . . . . . . . . . . Leg . | . . . . . . . . . . . . . . . . . . . . . . . . . . . . . . . . . . . . Wheel . | . . . . . . . . . . . . . . . . . . . . . . . . . . . . . . . . . . . . Hover 1 | . . . . . 1 . . . . . . . . . . . . . . . . . . . . . . . . . . . . . . Flight 37 | . . . . . 1 4 1 2 . . . . 3 . . . . 3 . 2 1 . . 1 2 4 1 1 3 2 . . 1 5 . Utility 153 | . . 1 . 1 2 3 . 2 . . . . 12 1 1 . . 4 4 1 7 2 . 1 1 7 7 20 5 4 2 14 4 43 4 Device 76 | . . . . 1 1 2 . 1 . . . . 9 . . . . 1 . 1 2 . . 1 1 3 5 14 . 3 1 6 3 18 3 Storage 14 | . . . . . . . . . . . . . . . . . . . . . . . . . . . . 3 . 1 . 3 . 7 . Processor 14 | . . 1 . . 1 . . . . . . . 2 . 1 . . . . . . . . . . . . . . . . 1 . 8 . Hackware 10 | . . . . . . . . . . . . . . . . . . . . . . . . . . 2 2 . 2 . . . 1 3 . Protection 37 | . . . . . . 1 . 1 . . . . 1 1 . . . 3 4 . 5 2 . . . 2 . 3 3 . 1 2 . 7 1 Artifact 2 | . . . . . . . . . . . . . . . . . . . . . . . . . . . . . . . . 2 . . . Weapon 74 | . . . 1 1 . 2 . 2 . . . . 7 . . . . 2 . . . 1 . 2 1 1 4 7 3 . . 11 2 18 9 Energy Gun . | . . . . . . . . . . . . . . . . . . . . . . . . . . . . . . . . . . . . Energy Cannon 19 | . . . . . . . . . . . . . 1 . . . . . . . . . . . . . 1 . 1 . . 4 1 7 4 Ballistic Gun 2 | . . . 1 1 . . . . . . . . . . . . . . . . . . . . . . . . . . . . . . . Ballistic Cannon . | . . . . . . . . . . . . . . . . . . . . . . . . . . . . . . . . . . . . Launcher 3 | . . . . . . . . . . . . . 2 . . . . 1 . . . . . . . . . . . . . . . . . Special Weapon 20 | . . . . . . . . . . . . . . . . . . . . . . 1 . . . . 1 2 . . . 1 . 10 5 Impact Weapon 17 | . . . . . . 2 . 1 . . . . 2 . . . . 1 . . . . . 1 1 . . 3 2 . . 4 . . . Slashing Weapon 3 | . . . . . . . . 1 . . . . 2 . . . . . . . . . . . . . . . . . . . . . . Piercing Weapon 10 | . . . . . . . . . . . . . . . . . . . . . . . . 1 . 1 2 2 . . . 2 1 1 . Special Melee Weapon . | . . . . . . . . . . . . . . . . . . . . . . . . . . . . . . . . . . . . Unidentified Prototypes 28 | . . . . . 2 2 . . . . . . 3 . . . . . . . 1 3 . . 1 2 5 6 . . . . . 3 . Parts Lost 18 | . . . . . 8 . . . . . . . 3 . . . . 2 . . 1 . . 1 1 1 . . . . . 1 . . . Power . | . . . . . . . . . . . . . . . . . . . . . . . . . . . . . . . . . . . . Propulsion 11 | . . . . . 6 . . . . . . . 2 . . . . 2 . . . . . . 1 . . . . . . . . . . Utility 5 | . . . . . . . . . . . . . 1 . . . . . . . 1 . . 1 . 1 . . . . . 1 . . . Weapon 2 | . . . . . 2 . . . . . . . . . . . . . . . . . . . . . . . . . . . . . . Highest Loss Streak 6 | . . . . . 6 . . . . . . . 3 . . . . 2 . . 1 . . 1 1 1 . . . . . 1 . . . To Critical Strikes . | . . . . . . . . . . . . . . . . . . . . . . . . . . . . . . . . . . . . Average Slot Usage (%) 89 | . 57 66 71 79 67 59 85 99 100 100 100 100 97 98 100 100 100 89 92 93 91 94 94 93 88 88 93 88 89 91 91 90 90 81 83 Core 3 | . . . . . . . 1 7 7 7 7 7 6 6 6 6 6 5 5 5 5 4 . 4 10 10 10 9 9 8 8 6 . . . Reactor 2 | . . . . . . . . . . . . . . . . . . . . . . . 5 . . . . . . . . 1 6 6 7 Leg 1 | . 28 28 28 28 12 . . . . . . . . . . . . . . . . . . . . . . . . . . . . . . Flight 27 | . . . . . 2 23 37 38 38 38 38 38 32 33 33 33 33 29 29 29 29 29 29 29 30 28 30 27 27 25 25 25 25 23 23 Device 14 | . . . . 8 . 8 15 8 7 7 7 7 19 21 20 20 20 17 17 22 18 17 17 16 10 14 14 8 9 16 16 15 19 14 14 Storage 1 | . . . . . . . . . . . . . . . . . . . . . . . . . . . . 2 4 4 4 4 5 6 . Processor 11 | . . 9 14 14 14 15 15 15 15 15 15 15 13 13 13 13 13 11 11 11 11 11 11 11 10 10 10 9 9 8 8 8 7 11 22 Hackware 1 | . . . . . . . . . . . . . . . . . . . . . . . . . . . . 6 4 4 4 4 4 2 . Protection 12 | . . . . . . 3 7 13 15 15 15 15 11 9 13 13 13 12 15 11 12 17 17 17 15 11 15 16 18 16 16 15 8 7 11 Special Weapon 1 | . . . . . . . . . . . . . . . . . . . . . . 3 5 . . . . . . . . . . 1 . Impact Weapon 2 | . . . . . . 6 7 7 7 7 7 7 5 6 6 6 6 5 5 5 5 1 . 4 5 5 5 3 3 4 4 3 1 . . Slashing Weapon 2 | . . . . . . . . 2 7 7 7 7 6 6 6 6 6 5 5 5 5 5 5 . . . . . . . . . . . . Piercing Weapon 1 | . . . . . . . . . . . . . . . . . . . . . . . . 4 5 5 5 3 4 4 4 3 3 . . Naked Turns . | . . . . . . . . . . . . . . . . . . . . . . . . . . . . . . . . . . . . Heaviest Build 87 | 10 2 2 3 4 3 7 14 21 21 21 21 21 24 25 25 25 25 33 33 32 32 35 35 35 37 39 38 44 53 47 47 61 69 87 86 Greatest Support 81 | 20 3 3 3 3 3 14 24 25 25 25 25 25 26 26 26 26 31 43 35 35 43 35 35 44 43 52 44 53 61 53 62 63 70 74 81 Greatest Overweight (x) 1 | . . . . 1 . . . . . . . . . . . . . . . . . . . . . . . 1 . . . 1 . 1 1 Average Overweight (x) . | . . . . . . . . . . . . . . . . . . . . . . . . . . . . . . . . . . . . Largest Inventory Capacity 10 | . 8 5 5 5 5 5 5 5 5 5 5 5 5 5 5 5 5 5 5 5 5 5 5 5 5 5 5 10 10 10 10 10 10 10 10 Average Capacity 6 | . 5 5 5 5 5 5 5 5 5 5 5 5 5 5 5 5 5 5 5 5 5 5 5 5 5 5 5 8 10 10 10 10 10 8 6 Most Carried 10 | . 5 5 5 5 5 5 5 5 5 5 5 5 5 5 5 5 5 5 5 5 5 5 5 5 5 5 5 10 10 10 10 10 10 10 10 Average Carried 6 | . 3 5 5 4 4 4 4 4 5 5 5 5 4 4 5 5 5 4 5 5 4 4 5 4 4 4 3 8 9 9 9 9 9 7 6 Final Capacity 10 | 8 5 5 5 5 5 5 5 5 5 5 5 5 5 5 5 5 5 5 5 5 5 5 5 5 5 5 5 10 10 10 10 10 10 10 5 Final Carried 10 | 6 5 5 5 5 5 5 4 5 5 5 5 5 4 5 5 5 5 5 5 5 5 5 5 5 5 4 5 10 10 9 10 10 10 10 5 Class Distribution -------------------- 26% | Scout 19% | Commander-Ninja 11% | Commander-Sprinter 9% | Ninja 9% | Alien-Ninja 5% | Scavenger-Scout 4% | Mutant 4% | Scavenger-Sprinter 3% | Commander-Scout Dominant Class ---------------- Mutant | -10/Materials Mutant | -10/Mines Mutant | -10/Exiles Mutant | -9/Mines Mutant | -8/Materials Scout | -7/Factory Scout | -7/Waste Scout | -7/Factory Scout | -7/Lower Caves Scout | -7/Lower Caves Scout | -7/Zion Scout | -6/Proximity Caves Scout | -6/Factory Scout | -6/Lower Caves Scout | -6/Lower Caves Scout | -6/Data Miner Scout | -5/Proximity Caves Scout | -5/Factory Scout | -5/Waste Ninja | -5/Factory Commander-Ninja | -5/Extension Commander-Ninja | -5/Cetus Commander-Ninja | -5/Archives Ninja | -5/Hub_04(d) Scout | -4/Factory Scout | -4/Armory Scout | -4/Lab Scavenger-Scout | -3/Research Scavenger-Scout | -3/Testing Scavenger-Ninja | -2/Research Alien-Ninja | -2/Quarantine Alien-Ninja | -2/Section 7 Alien-Ninja | -1/Access Commander-Sprinter | -1/Command Scavenger-Sprinter | -1/Access_0 Resources | -11 -10 -10 -10 -9 -8 -7 -7 -7 -7 -7 -7 -6 -6 -6 -6 -6 -5 -5 -5 -5 -5 -5 -5 -5 -4 -4 -4 -3 -3 -2 -2 -2 -1 -1 -1 ----------- Run | Jun Mat Min Exi Min Mat Fac Was Fac Low Low Zio Pro Fac Low Low Dat Pro Fac Was Fac Ext Cet Arc Hub Fac Arm Lab Res Tes Res Qua Sec Acc Com Ac0 Matter Collected 3353 | 178 24 . 29 . 57 55 . . 29 24 77 7 286 24 10 . 12 45 105 30 75 70 . 50 20 95 203 242 170 30 70 270 115 813 138 Remotely . | . . . . . . . . . . . . . . . . . . . . . . . . . . . . . . . . . . . . Salvage Created 7463 | . 10 . . 55 . 55 . . . . . . 843 33 . . 24 97 71 103 404 90 97 30 58 . 203 787 325 . 91 363 349 3096 279 Parts 319 | . 3 . . . . 1 . . . . . . 27 1 . . . 4 . 4 8 12 11 . 2 . 12 42 10 . 2 3 11 161 5 Haulers Intercepted 7 | . . . . . . 1 . . . . . . 3 . . . . 1 . 1 . . . . . . . . . . 1 . . . . Recyclers Shooed 5 | . . . . . 1 . . . . . . . . . . . . . . . . . . . . . . 2 . . . 1 . 1 . Parts Field Recycled . | . . . . . . . . . . . . . . . . . . . . . . . . . . . . . . . . . . . . Retrieved Matter . | . . . . . . . . . . . . . . . . . . . . . . . . . . . . . . . . . . . . Parts Self-Destructed 10 | . . . . . . . . . 1 . . . . 6 . . 3 . . . . . . . . . . . . . . . . . . Prevented 4 | . . . . . . . . . . . . . . 3 1 . . . . . . . . . . . . . . . . . . . . Kills | -11 -10 -10 -10 -9 -8 -7 -7 -7 -7 -7 -7 -6 -6 -6 -6 -6 -5 -5 -5 -5 -5 -5 -5 -5 -4 -4 -4 -3 -3 -2 -2 -2 -1 -1 -1 ------- Run | Jun Mat Min Exi Min Mat Fac Was Fac Low Low Zio Pro Fac Low Low Dat Pro Fac Was Fac Ext Cet Arc Hub Fac Arm Lab Res Tes Res Qua Sec Acc Com Ac0 Combat Hostiles Destroyed 36 | . . . . 1 . . . . . . . . 8 . . . 2 . . . 7 . . . . . . . . . . 2 1 13 2 Melee 7 | . . . . . . . . . . . . . 1 . . . 1 . . . 4 . . . . . . . . . . . 1 . . Guns 1 | . . . . 1 . . . . . . . . . . . . . . . . . . . . . . . . . . . . . . . Cannons 9 | . . . . . . . . . . . . . . . . . . . . . . . . . . . . . . . . 1 . 7 1 AOE 7 | . . . . . . . . . . . . . 7 . . . . . . . . . . . . . . . . . . . . . . Classes Destroyed 18 | . 1 . . 1 . 1 . . . . . . 5 1 . . 1 1 . . 2 . . . . . . 1 . . . . . 4 . Worker 3 | . . . . . . . . . . . . . 2 . . . . . . . . . . . . . . . . . . . . 1 . Builder 6 | . . . . . . . . . . . . . . . . . . 1 . 1 . . . . 2 . . 1 . . . . 1 . . Tunneler 1 | . . . . . . . . . . . . . . . . . . . . . . . . . . . . 1 . . . . . . . Hauler 7 | . . . . . . 1 . . . . . . 3 . . . . 1 . 1 . . . . . . . . . . 1 . . . . Recycler 21 | . . . . . . . . . . . . . 2 . . . . . . . . . . . . . . 5 1 . . 2 2 9 . Minesweeper 1 | . . . . . . . . . . . . . . 1 . . . . . . . . . . . . . . . . . . . . . Operator 7 | . 1 . . . . . . . . . . . . . . . . . . . . . 3 . . . . . 1 . . . 1 1 . Drone 1 | . . . . . . . . . . . . . . . . . 1 . . . . . . . . . . . . . . . . . . Watcher 11 | . . . . . . . . . . . . . 4 . . . . . . . 1 . . 1 1 . . 1 1 . . . . 2 . Swarmer 9 | . . . . . . . . . . . . . 7 . . . 1 . . . . . . . . . . . . . . . 1 . . Grunt 14 | . . . . . . . . . . . . . . . . . . . . . 5 . . . . . . . . . . . . 9 . Duelist 1 | . . . . 1 . . . . . . . . . . . . . . . . . . . . . . . . . . . . . . . Sentry 2 | . . . . . . . . . . . . . . . . . . . . . 2 . . . . . . . . . . . . . . Hunter 2 | . . . . . . . . . . . . . . . . . . . . . . . . . . . . . . . . . . 2 . Programmer 5 | . . . . . . . . . . . . . 1 . . . . . . . . . . . . . . . . . . 2 . 2 . Z-Heavy 1 | . . . . . . . . . . . . . . . . . . . . . . . . . . . . . . . . . . 1 . Z-EX 2 | . . . . . . . . . . . . . . . . . . . . . . . . . . . . . . . . . . 2 . Martyr 2 | . . . . . . . . . . . . . . . . . . . . . . . . . . . . . . . . . . 2 . Wizard 3 | . . . . . . . . . . . . . . . . . . . . . . . . . . . 3 . . . . . . . . Best Kill Streak 8 | . 1 . . 1 . 1 . . . . . . 6 1 . . 2 1 . 1 2 . 3 1 2 . . 1 1 . 1 1 2 8 1 Combat Bots Only 5 | . . . . 1 . . . . . . . . 4 . . . 2 . . . 2 . . . . . . . . . . 1 1 5 1 Max Kills in Single Turn 6 | . 1 . . 1 . 1 . . . . . . 6 1 . . 1 1 . 1 1 1 1 1 1 . 1 1 1 . 1 1 1 1 1 Gunslinging . | . . . . . . . . . . . . . . . . . . . . . . . . . . . . . . . . . . . . Exploded 4 | . . . . . . . . . . . . . 4 . . . . . . . . . . . . . . . . . . . . . . Melee 1 | . . . . . . . . . . . . . 1 . . . 1 . . . 1 . . . . . . . . . . . 1 . . Uniques/NPCs Destroyed 6 | . . . . . . . . . . . . . . . . . . . . . . 1 . . . . . 1 . . . . . 2 2 A7 (-5/Cetus) AD-0RF (-3/Research) MAIN.C Shell (-1/Command) MAIN.C (-1/Command) A8 (-1/Access_0) Architect (-1/Access_0) Combat | -11 -10 -10 -10 -9 -8 -7 -7 -7 -7 -7 -7 -6 -6 -6 -6 -6 -5 -5 -5 -5 -5 -5 -5 -5 -4 -4 -4 -3 -3 -2 -2 -2 -1 -1 -1 -------- Run | Jun Mat Min Exi Min Mat Fac Was Fac Low Low Zio Pro Fac Low Low Dat Pro Fac Was Fac Ext Cet Arc Hub Fac Arm Lab Res Tes Res Qua Sec Acc Com Ac0 Damage Taken 6723 | . 57 . . 10 1297 13 . . 21 . . . 608 . . . 42 323 . . 200 29 . 597 182 707 . . 16 . . 830 223 468 1100 Core 861 | . 23 . . . 268 . . . 10 . . . 70 . . . . . . . 12 . . . 30 94 . . . . . 193 21 73 67 Absorbed by Shields 658 | . . . . . . . . . . . . . . . . . . . . . 12 . . . . 5 . . . . . 89 19 164 369 Redirected to Shielding 437 | . . . . . . . . . . . . . 101 . . . . . . . . . . . 28 39 . . . . . 81 66 . 122 Regen/Repaired (Parts) 1981 | . . . . . . . . . . . 29 . . . . . . . . . . 39 2 99 107 671 143 . . . . 46 178 667 . Core Remaining (%) 85 | 100 . . . 90 51 . . . . . . 98 . . . . 91 . . . . . . 98 . . 89 . 100 . . 82 . . 59 Volleys Fired 306 | . 2 . 3 2 3 . . . . . . . 2 . . . . 1 . . . 21 . . . . . 11 1 . . 9 . 228 23 Largest 2 | . 2 . 1 2 2 . . . . . . . 1 . . . . 1 . . . 1 . . . . . 1 1 . . 1 . 1 1 Hottest 300 | . 60 . 20 60 40 . . . . . . . 43 . . . . 43 . . . 20 . . . . . 20 100 . . 300 . 300 300 Shots Fired 314 | . 4 . 3 4 6 . . . . . . . 2 . . . . 1 . . . 21 . . . . . 11 1 . . 9 . 228 24 Gun 17 | . 4 . 3 4 6 . . . . . . . . . . . . . . . . . . . . . . . . . . . . . . Cannon 71 | . . . . . . . . . . . . . . . . . . . . . . . . . . . . . 1 . . 4 . 56 10 Launcher 3 | . . . . . . . . . . . . . 2 . . . . 1 . . . . . . . . . . . . . . . . . Special 223 | . . . . . . . . . . . . . . . . . . . . . . 21 . . . . . 11 . . . 5 . 172 14 Kinetic 14 | . 2 . 3 3 6 . . . . . . . . . . . . . . . . . . . . . . . . . . . . . . Thermal 285 | . 2 . . 1 . . . . . . . . . . . . . . . . . 21 . . . . . 11 1 . . 9 . 216 24 Explosive 3 | . . . . . . . . . . . . . 2 . . . . 1 . . . . . . . . . . . . . . . . . Electromagnetic 1 | . . . . . . . . . . . . . . . . . . . . . . . . . . . . . . . . . . 1 . Robot Hit Streak 34 | . 4 . . 7 11 . . . . . . . . . . . . . . . . 5 . . . . . 4 . . . 14 . 33 34 Robot Miss Streak 3 | . . . . . 1 . . . . . . . . . . . . 1 . . . 3 . . . . . 3 . . . 1 . 2 1 Penetration Max 1 | . . . . . . . . . . . . . . . . . . . . . . . . . . . . . . . . . . . 1 Secondary Targets . | . . . . . . . . . . . . . . . . . . . . . . . . . . . . . . . . . . . . Shots Hit Robots 350 | . 4 . . 3 5 1 . . . . . . 21 2 . . 3 4 1 4 9 17 5 1 7 . 4 23 12 . 1 8 8 186 21 Core Hits 182 | . 2 . . 1 1 . . . . . . . 14 1 . . . 1 . 2 5 5 2 1 2 . 2 10 3 . . 5 3 87 35 Critical Kills 6 | . . . . . . . . . . . . . 1 . . . . . . . 1 . . . . . . . . . . . . 4 . Critical Parts Destroyed 11 | . . . . . . . . . . . . . 2 . . . 1 . . . 1 . . 1 1 . . 1 . . . 1 . . 3 Critical Strikes 41 | . . . . . . . . . . . . . 3 . . . 1 1 . . 2 2 . 1 1 . . 3 . . . 1 1 22 3 Meltdown 4 | . . . . . . . . . . . . . . . . . . . . . . . . . . . . . . . . . . 4 . Destroy 3 | . . . . . . . . . . . . . . . . . . . . . . . . . . . . . . . . . . . 3 Smash 10 | . . . . . . . . . . . . . 3 . . . 1 . . . 2 . . 1 1 . . 1 . . . 1 . . . Sever 17 | . . . . . . . . . . . . . . . . . . 1 . . . 2 . . . . . . . . . . . 14 . Impale 7 | . . . . . . . . . . . . . . . . . . . . . . . . . . . . 2 . . . . 1 4 . Melee Attacks 385 | . . . . . . 2 . 6 2 . 1 3 63 2 . . 7 11 1 8 20 6 5 18 25 14 8 42 35 4 12 19 17 54 . Impact 145 | . . . . . . 2 . 4 . . . 3 26 1 . . 7 4 1 2 11 . . 8 7 11 1 14 15 4 11 12 1 . . Slashing 78 | . . . . . . . . 2 2 . 1 . 37 1 . . . 7 . 6 9 6 5 2 . . . . . . . . . . . Piercing 162 | . . . . . . . . . . . . . . . . . . . . . . . . 8 18 3 7 28 20 . 1 7 16 54 . Sneak Attacks 84 | . . . . . . 1 . . . . . . 8 2 . . 1 2 . 3 4 6 5 . 3 . 4 14 3 . 1 2 5 20 . Combat Hostiles 5 | . . . . . . . . . . . . . . . . . 1 . . . 4 . . . . . . . . . . . . . . Follow-up Attacks 11 | . . . . . . . . . . . . . 3 1 . . . . . 1 1 . . 1 3 . . . . . . 1 . . . Damage Inflicted 18912 | . 37 . . 27 54 69 . . . . . . 2272 209 . . 186 384 123 379 658 533 557 88 420 . 332 1459 985 . 129 432 686 6210 2683 Guns 116 | . 35 . . 27 54 . . . . . . . . . . . . . . . . . . . . . . . . . . . . . . Cannons 4081 | . . . . . . . . . . . . . . . . . . . . . . . . . . . . . . . . . . 2011 2070 Explosions 891 | . . . . . . . . . . . . . 818 . . . . 73 . . . . . . . . . . . . . . . . . Melee 10594 | . . . . . . 69 . . . . . . 1454 209 . . 186 311 123 379 658 344 557 68 420 . 332 1438 985 . 129 196 686 2050 . Ramming 22 | . 2 . . . . . . . . . . . . . . . . . . . . . . 20 . . . . . . . . . . . Kinetic 85 | . 14 . . 17 54 . . . . . . . . . . . . . . . . . . . . . . . . . . . . . . Thermal 7675 | . 21 . . 10 . . . . . . . . 355 . . . . . . . . 189 . . . . . 21 . . . 236 . 4160 2683 Explosive 536 | . . . . . . . . . . . . . 463 . . . . 73 . . . . . . . . . . . . . . . . . Electromagnetic . | . . . . . . . . . . . . . . . . . . . . . . . . . . . . . . . . . . . . Impact 2775 | . . . . . . 69 . . . . . . 867 104 . . 186 . 123 123 373 . . 68 91 . . 140 240 . 129 196 66 . . Slashing 2445 | . . . . . . . . . . . . . 587 105 . . . 311 . 256 285 344 557 . . . . . . . . . . . . Piercing 5374 | . . . . . . . . . . . . . . . . . . . . . . . . . 329 . 332 1298 745 . . . 620 2050 . Highest Corruption 5 | . . . . . 2 . . . . . . . 5 3 1 1 1 . . . . . . 5 . 2 1 . . . . 4 1 1 2 Average Corruption 1 | . . . . . 2 . . . . . . . 3 1 1 1 1 . . . . . . 1 . 1 1 . . . . 1 1 1 1 Corruption Purged 8 | . . . . . . . . . . . . . 3 2 . . . . . . . . . . . 2 . . . . . . . 1 . Corruption Blocked 96 | . . . . . . . . . . . . . . . . . . . . . . . . . . 36 . . . . . . . 60 . Effects 42 | . . . . . 1 . . . . . . . 15 1 1 1 2 . . . . . . 1 . 2 1 . . . . . 1 13 3 Message Errors 11 | . . . . . 1 . . . . . . . 5 . . . 1 . . . . . . . . . . . . . . . 1 2 1 Matter Fused 10 | . . . . . . . . . . . . . 4 . 1 1 . . . . . . . . . . . . . . . . . 3 1 Heat Flow Errors 3 | . . . . . . . . . . . . . 1 . . . . . . . . . . 1 . 1 . . . . . . . . . Energy Discharges 6 | . . . . . . . . . . . . . 2 . . . . . . . . . . . . . 1 . . . . . . 3 . Parts Fused 1 | . . . . . . . . . . . . . . . . . . . . . . . . . . . . . . . . . . 1 . Data Loss (minor) 8 | . . . . . . . . . . . . . 3 1 . . 1 . . . . . . . . 1 . . . . . . . 2 . Data Loss (major) 2 | . . . . . . . . . . . . . . . . . . . . . . . . . . . . . . . . . . 2 . Misfires 1 | . . . . . . . . . . . . . . . . . . . . . . . . . . . . . . . . . . . 1 Overload Shots . | . . . . . . . . . . . . . . . . . . . . . . . . . . . . . . . . . . . . Overflow Damage 3304 | . . . . . . 49 . . . . . . 517 65 . . 106 62 96 . 75 64 203 68 194 . 101 562 73 . 59 115 233 657 5 Projectiles 79 | . . . . . . . . . . . . . . . . . . . . . . . . . . . . . . . . 9 . 65 5 Explosions 132 | . . . . . . . . . . . . . 119 . . . . 13 . . . . . . . . . . . . . . . . . Melee 3093 | . . . . . . 49 . . . . . . 398 65 . . 106 49 96 . 75 64 203 68 194 . 101 562 73 . 59 106 233 592 . Knockbacks 10 | . . . . . . . . . . . . . 3 . . . . . . . 2 . . . 1 . . 1 2 . . 1 . . . Impact 10 | . . . . . . . . . . . . . 3 . . . . . . . 2 . . . 1 . . 1 2 . . 1 . . . Kinetic . | . . . . . . . . . . . . . . . . . . . . . . . . . . . . . . . . . . . . Secondary . | . . . . . . . . . . . . . . . . . . . . . . . . . . . . . . . . . . . . Self-Inflicted Damage 10 | . . . . . . . . . . . . . . . . . . . . . . . . 10 . . . . . . . . . . . Shots . | . . . . . . . . . . . . . . . . . . . . . . . . . . . . . . . . . . . . Rammed 1 | . . . . . . . . . . . . . . . . . . . . . . . . 1 . . . . . . . . . . . Targets Rammed 2 | . 1 . . . . . . . . . . . . . . . . . . . . . . 1 . . . . . . . . . . . Kicked 1 | . 1 . . . . . . . . . . . . . . . . . . . . . . . . . . . . . . . . . . Crushed . | . . . . . . . . . . . . . . . . . . . . . . . . . . . . . . . . . . . . Highest Temperature 205 | . 20 . . . 14 . . . 11 . . 4 205 1 1 1 1 . . 5 5 3 . 106 . 97 . . 42 . 23 181 3 178 158 Average Temperature 57 | . 12 . . . 14 . . . 7 . . 4 65 1 1 1 1 . . 5 5 3 . 51 . 67 . . 21 . 23 88 2 66 110 Received Heat Transfer 934 | . 30 . . 6 558 9 . . 12 . . . 66 . . . . 12 . . 45 . . 27 9 85 . . 9 . . 9 . 49 8 Siege Activations . | . . . . . . . . . . . . . . . . . . . . . . . . . . . . . . . . . . . . Robots Corrupted . | . . . . . . . . . . . . . . . . . . . . . . . . . . . . . . . . . . . . Combat Hostiles . | . . . . . . . . . . . . . . . . . . . . . . . . . . . . . . . . . . . . Parts Fried 20 | . . . . . . 1 . . . . . . 3 . . . 2 . 1 . 2 . . . 2 . . . 5 . . 1 3 . . Impact Corruptions 39 | . . . . . . 2 . . . . . . 8 . . . 4 . 3 . 4 . . 2 3 . . 4 3 . 1 4 1 . . Robots Melted 9 | . . . . . . . . . . . . . . . . . . . . . . . . . . . . . . . . 1 . 7 1 Combat Hostiles 8 | . . . . . . . . . . . . . . . . . . . . . . . . . . . . . . . . 1 . 6 1 Parts Melted 31 | . . . . . . . . . . . . . . . . . . . . . 4 . . . . . . . . . . 5 . 22 . Heat Transferred 12878 | . 50 . . 25 . . . . . . . . 200 . . . . . . . . 223 . . . . . 63 . . . 1200 . 8715 2402 Parts Sabotaged . | . . . . . . . . . . . . . . . . . . . . . . . . . . . . . . . . . . . . Parts Stolen . | . . . . . . . . . . . . . . . . . . . . . . . . . . . . . . . . . . . . Parts Stripped . | . . . . . . . . . . . . . . . . . . . . . . . . . . . . . . . . . . . . Power Chain Reactions . | . . . . . . . . . . . . . . . . . . . . . . . . . . . . . . . . . . . . Missiles Intercepted 1 | . . . . . . . . . . . . . . . . . . . . . . . . . . . . . . . . . . 1 . Alert | -11 -10 -10 -10 -9 -8 -7 -7 -7 -7 -7 -7 -6 -6 -6 -6 -6 -5 -5 -5 -5 -5 -5 -5 -5 -4 -4 -4 -3 -3 -2 -2 -2 -1 -1 -1 ------- Run | Jun Mat Min Exi Min Mat Fac Was Fac Low Low Zio Pro Fac Low Low Dat Pro Fac Was Fac Ext Cet Arc Hub Fac Arm Lab Res Tes Res Qua Sec Acc Com Ac0 Peak Influence 1534 | . 260 101 . 79 462 302 120 121 . . . . 821 . . . . 436 152 186 226 105 184 513 400 907 . 167 237 65 184 423 465 1534 . Initial 300 | . . 101 . . 22 205 105 . . . . . 300 . . . . 231 152 106 91 78 42 . 175 196 . . 53 23 36 103 182 297 . Average 255 | . 144 101 . 44 179 252 100 51 . . . . 461 . . . . 314 152 135 106 99 33 284 262 359 . 25 157 34 90 255 335 891 . Maximum Alert Level 5 | . 1 . . . 2 1 . . . . . . 3 . . . . 2 . . 1 . . 2 2 3 . . 1 . . 2 2 5 . Low Security (%) 44 | . 61 100 . 100 64 . 100 100 . . . . 12 . . . . . 100 100 90 100 100 17 23 12 . 100 57 100 100 21 4 . . Level 1 23 | . 38 . . . 29 100 . . . . . . 34 . . . . 89 . . 9 . . 60 75 75 . . 42 . . 72 63 2 . Level 2 7 | . . . . . 5 . . . . . . . 29 . . . . 10 . . . . . 21 . 1 . . . . . 5 32 4 . Level 3 6 | . . . . . . . . . . . . . 24 . . . . . . . . . . . . 11 . . . . . . . 17 . Level 4 2 | . . . . . . . . . . . . . . . . . . . . . . . . . . . . . . . . . . 9 . Level 5 16 | . . . . . . . . . . . . . . . . . . . . . . . . . . . . . . . . . . 66 . High Security . | . . . . . . . . . . . . . . . . . . . . . . . . . . . . . . . . . . . . Max Security . | . . . . . . . . . . . . . . . . . . . . . . . . . . . . . . . . . . . . Squads Dispatched 34 | . 3 . . . 1 2 . 2 . . . . 3 . . . . . . . . . . 5 2 3 . 2 . . . 4 1 6 . Investigation 9 | . 2 . . . 1 . . . . . . . . . . . . . . . . . . 1 1 1 . 1 . . . 2 . . . Extermination 11 | . . . . . . . . . . . . . 2 . . . . . . . . . . 2 . 2 . . . . . 1 1 3 . Reinforcement 9 | . 1 . . . . 2 . 2 . . . . . . . . . . . . . . . 2 . . . 1 . . . 1 . . . Assault 3 | . . . . . . . . . . . . . . . . . . . . . . . . . . . . . . . . . . 3 . Garrison 2 | . . . . . . . . . . . . . 1 . . . . . . . . . . . 1 . . . . . . . . . . Intercept . | . . . . . . . . . . . . . . . . . . . . . . . . . . . . . . . . . . . . Searches Triggered 2 | . . . . . . . . . . . . . 2 . . . . . . . . . . . . . . . . . . . . . . Data Miner Redirects 3 | . . . . . . . . . . . . . . . . . . . . . . . . . 1 . . . . . . 1 . 1 . Construction Impeded . | . . . . . . . . . . . . . . . . . . . . . . . . . . . . . . . . . . . . Haulers Reinforced 1 | . . . . . . 1 . . . . . . . . . . . . . . . . . . . . . . . . . . . . . Active Scanning Responses . | . . . . . . . . . . . . . . . . . . . . . . . . . . . . . . . . . . . . Cargo Convoy Interrupts 1 | . . . . . . . . . . . . . 1 . . . . . . . . . . . . . . . . . . . . . . Stealth | -11 -10 -10 -10 -9 -8 -7 -7 -7 -7 -7 -7 -6 -6 -6 -6 -6 -5 -5 -5 -5 -5 -5 -5 -5 -4 -4 -4 -3 -3 -2 -2 -2 -1 -1 -1 --------- Run | Jun Mat Min Exi Min Mat Fac Was Fac Low Low Zio Pro Fac Low Low Dat Pro Fac Was Fac Ext Cet Arc Hub Fac Arm Lab Res Tes Res Qua Sec Acc Com Ac0 Distress Signals 38 | . 1 1 . . 3 1 . . . . . . 2 . . . . 2 . . . 1 . 1 2 3 . . . . . 3 2 16 . Communications Jammed . | . . . . . . . . . . . . . . . . . . . . . . . . . . . . . . . . . . . . Distress Signals . | . . . . . . . . . . . . . . . . . . . . . . . . . . . . . . . . . . . . Times Spotted 426 | . 13 3 . 4 34 9 6 8 4 . . 6 40 1 . . 6 16 . 4 18 4 4 21 19 41 . 9 3 1 3 28 21 53 47 Peak Tracking Total 28 | . 10 6 9 2 16 5 6 3 3 . . 6 13 3 . . 5 8 . 4 5 4 1 7 10 25 . 6 1 2 2 13 7 6 28 Tactical Retreats 82 | . 3 . . . 6 2 . 1 1 . . . 10 2 . . 1 4 . . 2 . . 3 3 6 . 1 1 1 . 2 8 13 12 Traps | -11 -10 -10 -10 -9 -8 -7 -7 -7 -7 -7 -7 -6 -6 -6 -6 -6 -5 -5 -5 -5 -5 -5 -5 -5 -4 -4 -4 -3 -3 -2 -2 -2 -1 -1 -1 ------- Run | Jun Mat Min Exi Min Mat Fac Was Fac Low Low Zio Pro Fac Low Low Dat Pro Fac Was Fac Ext Cet Arc Hub Fac Arm Lab Res Tes Res Qua Sec Acc Com Ac0 Traps Triggered 21 | . . . . . 3 2 . . . . . . 3 . . . . 2 . 1 5 . . . . 4 . . . . . 1 . . . Indirectly . | . . . . . . . . . . . . . . . . . . . . . . . . . . . . . . . . . . . . Trap Hack Attempts . | . . . . . . . . . . . . . . . . . . . . . . . . . . . . . . . . . . . . Triggered . | . . . . . . . . . . . . . . . . . . . . . . . . . . . . . . . . . . . . Disarmed . | . . . . . . . . . . . . . . . . . . . . . . . . . . . . . . . . . . . . Reprogrammed . | . . . . . . . . . . . . . . . . . . . . . . . . . . . . . . . . . . . . Reused . | . . . . . . . . . . . . . . . . . . . . . . . . . . . . . . . . . . . . Traps Extracted . | . . . . . . . . . . . . . . . . . . . . . . . . . . . . . . . . . . . . Installed . | . . . . . . . . . . . . . . . . . . . . . . . . . . . . . . . . . . . . Triggered 4 | . . . . . . . . . . . . . . 3 1 . . . . . . . . . . . . . . . . . . . . Most Traps Carried 1 | . . . . . . . . . . . . . . 1 1 1 1 . . . . . . . . . . . . . . . . . . Machines | -11 -10 -10 -10 -9 -8 -7 -7 -7 -7 -7 -7 -6 -6 -6 -6 -6 -5 -5 -5 -5 -5 -5 -5 -5 -4 -4 -4 -3 -3 -2 -2 -2 -1 -1 -1 ---------- Run | Jun Mat Min Exi Min Mat Fac Was Fac Low Low Zio Pro Fac Low Low Dat Pro Fac Was Fac Ext Cet Arc Hub Fac Arm Lab Res Tes Res Qua Sec Acc Com Ac0 Machines Disabled 41 | . . . 1 . . . . . . . . . 14 . . . . . . . . . . 1 . 4 1 . 2 . 2 6 . 9 1 Max in Single Turn 13 | . . . 1 . . . . . . . . . 13 . . . . . . . . . . . . 1 1 . 1 . 1 1 . 2 1 Garrison Access 6 | . . . . . 1 . . . . . . . . . . . . . . . . . . 1 . . . 2 1 . 1 . . . . Phase Generator 1 | . . . . . . . . . . . . . . . . . . . . . . . . . . . . . . . . . . 1 . Network Hub 2 | . . . . . . . . . . . . . . . . . . . . . . . . 2 . . . . . . . . . . . Machines Repaired . | . . . . . . . . . . . . . . . . . . . . . . . . . . . . . . . . . . . . Machines Sabotaged . | . . . . . . . . . . . . . . . . . . . . . . . . . . . . . . . . . . . . Overloaded Fab Kills . | . . . . . . . . . . . . . . . . . . . . . . . . . . . . . . . . . . . . Hacking | -11 -10 -10 -10 -9 -8 -7 -7 -7 -7 -7 -7 -6 -6 -6 -6 -6 -5 -5 -5 -5 -5 -5 -5 -5 -4 -4 -4 -3 -3 -2 -2 -2 -1 -1 -1 --------- Run | Jun Mat Min Exi Min Mat Fac Was Fac Low Low Zio Pro Fac Low Low Dat Pro Fac Was Fac Ext Cet Arc Hub Fac Arm Lab Res Tes Res Qua Sec Acc Com Ac0 Machines Accessed 53 | . 2 . 2 1 4 2 . 2 . 2 . . 5 1 . 3 . 3 . 3 . . . 1 3 4 . 2 1 2 2 1 3 4 . Terminals 19 | . . . . . 3 2 . 2 . . . . 3 . . . . 1 . 1 . . . . 2 . . . . 1 . 1 . 3 . Fabricators 6 | . . . . . . . . . . . . . 2 . . . . 1 . . . . . . . 3 . . . . . . . . . Repair Stations 4 | . . . . . . . . . . . . . . . . . . 1 . 1 . . . . . 1 . . . . . . 1 . . Recycling Units 3 | . 2 . . . . . . . . . . . . . . . . . . . . . . . . . . . . . . . . 1 . Scanalyzers 2 | . . . . . . . . . . . . . . . . . . . . . . . . . . . . . . 1 1 . . . . Garrison Access 10 | . . . . . 1 . . . . . . . . . . . . . . 1 . . . 1 1 . . 2 1 . 1 . 2 . . Total Hacks 116 | . 3 . 2 1 7 7 . 4 . 2 . . 8 1 . 26 . 4 . 4 . . . 2 4 16 . 5 1 3 2 2 5 7 . Successful 70 | . 2 . 2 1 2 . . 3 . 2 . . 4 1 . 26 . 1 . 2 . . . 1 2 10 . 2 1 1 2 1 . 4 . Failed 46 | . 1 . . . 5 7 . 1 . . . . 4 . . . . 3 . 2 . . . 1 2 6 . 3 . 2 . 1 5 3 . Catastrophic 10 | . . . . . . 1 . . . . . . . . . . . 1 . 1 . . . . 1 2 . 1 . 1 . . 2 . . Database Lockouts . | . . . . . . . . . . . . . . . . . . . . . . . . . . . . . . . . . . . . Manual 266 | . 3 . 1 . 5 7 . 3 . . . . 36 . . . . 13 . 3 11 1 . 19 19 22 . 13 26 3 24 20 22 15 . Terminals 36 | . . . . . 6 7 . 4 . . . . 4 . . . . 2 . 1 . . . . 3 . . . . 1 . 2 . 6 . Fabricators 19 | . . . . . . . . . . . . . 4 . . . . 1 . . . . . . . 14 . . . . . . . . . Repair Stations 7 | . . . . . . . . . . . . . . . . . . 1 . 2 . . . . . 2 . . . . . . 2 . . Recycling Units 4 | . 3 . . . . . . . . . . . . . . . . . . . . . . . . . . . . . . . . 1 . Scanalyzers 3 | . . . . . . . . . . . . . . . . . . . . . . . . . . . . . . 2 1 . . . . Garrison Access 15 | . . . . . 1 . . . . . . . . . . . . . . 1 . . . 2 1 . . 5 1 . 1 . 3 . . Terminal Hacks 45 | . . . 2 1 1 . . 1 . 2 . . 3 1 . 26 . . . 1 . . . . 2 . . . . 1 . 1 . 3 . Record 7 | . . . 1 . . . . . . . . . . . . 6 . . . . . . . . . . . . . . . . . . . Part Schematic 12 | . . . . . . . . . . . . . . . . 12 . . . . . . . . . . . . . . . . . . . Robot Schematic 5 | . . . . . . . . . . . . . . . . 5 . . . . . . . . . . . . . . . . . . . Prototype ID Bank 3 | . . . . . . . . . . . . . . . . 3 . . . . . . . . . . . . . . . . . . . Open Door 6 | . . . . 1 . . . . . 2 . . . 1 . . . . . . . . . . . . . . . . . 1 . 1 . Open DSF 7 | . . . . . . . . . . . . . 3 . . . . . . 1 . . . . 2 . . . . 1 . . . . . Branch Access Points 2 | . . . . . 1 . . 1 . . . . . . . . . . . . . . . . . . . . . . . . . . . EX-Prototype ID Bank 1 | . . . 1 . . . . . . . . . . . . . . . . . . . . . . . . . . . . . . . . Disengage Seal 2 | . . . . . . . . . . . . . . . . . . . . . . . . . . . . . . . . . . 2 . Fabricator Hacks 6 | . . . . . . . . . . . . . . . . . . . . . . . . . . 6 . . . . . . . . . Network Status 1 | . . . . . . . . . . . . . . . . . . . . . . . . . . 1 . . . . . . . . . Load Schematic 3 | . . . . . . . . . . . . . . . . . . . . . . . . . . 3 . . . . . . . . . Build 2 | . . . . . . . . . . . . . . . . . . . . . . . . . . 2 . . . . . . . . . Repair Station Hacks 3 | . . . . . . . . . . . . . . . . . . . . 1 . . . . . 2 . . . . . . . . . Scan Component 2 | . . . . . . . . . . . . . . . . . . . . 1 . . . . . 1 . . . . . . . . . Repair 1 | . . . . . . . . . . . . . . . . . . . . . . . . . . 1 . . . . . . . . . Recycling Unit Hacks . | . . . . . . . . . . . . . . . . . . . . . . . . . . . . . . . . . . . . Scanalyzer 1 | . . . . . . . . . . . . . . . . . . . . . . . . . . . . . . . 1 . . . . Insert Component 1 | . . . . . . . . . . . . . . . . . . . . . . . . . . . . . . . 1 . . . . Garrison Access Hacks 6 | . . . . . 1 . . . . . . . . . . . . . . . . . . 1 . . . 2 1 . 1 . . . . Seal Access 6 | . . . . . 1 . . . . . . . . . . . . . . . . . . 1 . . . 2 1 . 1 . . . . Unauthorized Hacks 9 | . 2 . . . . . . 2 . . . . 1 . . . . 1 . . . . . . . 2 . . . . . . . 1 . Terminals 2 | . . . . . . . . 2 . . . . . . . . . . . . . . . . . . . . . . . . . . . Assimilate 1 | . . . . . . . . 1 . . . . . . . . . . . . . . . . . . . . . . . . . . . Botnet 1 | . . . . . . . . 1 . . . . . . . . . . . . . . . . . . . . . . . . . . . Fabricators 4 | . . . . . . . . . . . . . 1 . . . . 1 . . . . . . . 2 . . . . . . . . . Prioritize 1 | . . . . . . . . . . . . . . . . . . . . . . . . . . 1 . . . . . . . . . Haulers 2 | . . . . . . . . . . . . . 1 . . . . 1 . . . . . . . . . . . . . . . . . Recompile 1 | . . . . . . . . . . . . . . . . . . . . . . . . . . 1 . . . . . . . . . Repair Stations . | . . . . . . . . . . . . . . . . . . . . . . . . . . . . . . . . . . . . Recycling Units 3 | . 2 . . . . . . . . . . . . . . . . . . . . . . . . . . . . . . . . 1 . Mask 1 | . . . . . . . . . . . . . . . . . . . . . . . . . . . . . . . . . . 1 . Tunnel 2 | . 2 . . . . . . . . . . . . . . . . . . . . . . . . . . . . . . . . . . Scanalyzers . | . . . . . . . . . . . . . . . . . . . . . . . . . . . . . . . . . . . . Garrison Access . | . . . . . . . . . . . . . . . . . . . . . . . . . . . . . . . . . . . . Data Cores Recovered 2 | . . . . . . . . . . . . . . . . . . . . . . . . . . 1 . . 1 . . . . . . Used . | . . . . . . . . . . . . . . . . . . . . . . . . . . . . . . . . . . . . Hacking Detections 23 | . . . . . 3 2 . 2 . . . . 3 . . . . 3 . 2 . . . . 2 1 . 1 . 1 . . 3 . . Full Trace Events . | . . . . . . . . . . . . . . . . . . . . . . . . . . . . . . . . . . . . Feedback Events . | . . . . . . . . . . . . . . . . . . . . . . . . . . . . . . . . . . . . Feedback Blocked . | . . . . . . . . . . . . . . . . . . . . . . . . . . . . . . . . . . . . Robot Schematics Acquired 36 | . . . . . . . . . . . 4 . . . . 5 . . . . 3 . . . . . . . 7 . 4 10 . 3 . Robots Built . | . . . . . . . . . . . . . . . . . . . . . . . . . . . . . . . . . . . . Authchips . | . . . . . . . . . . . . . . . . . . . . . . . . . . . . . . . . . . . . Time . | . . . . . . . . . . . . . . . . . . . . . . . . . . . . . . . . . . . . Total Robot Build Rating . | . . . . . . . . . . . . . . . . . . . . . . . . . . . . . . . . . . . . Part Schematics Acquired 129 | . . . . . . . . . . . 15 . 21 . . 12 . 11 . . . . . . . 9 . . . . 25 12 11 13 . Parts Built 3 | . . . . . . . . . . . . . . . . . . . . . . . . . . 3 . . . . . . . . . Authchips 2 | . . . . . . . . . . . . . . . . . . . . . . . . . . 2 . . . . . . . . . Time 115 | . . . . . . . . . . . . . . . . . . . . . . . . . . 115 . . . . . . . . . Total Part Build Rating 19 | . . . . . . . . . . . . . . . . . . . . . . . . . . 19 . . . . . . . . . Parts Repaired 1 | . . . . . . . . . . . . . . . . . . . . . . . . . . 1 . . . . . . . . . Time 108 | . . . . . . . . . . . . . . . . . . . . . . . . . . 108 . . . . . . . . . Parts Recycled . | . . . . . . . . . . . . . . . . . . . . . . . . . . . . . . . . . . . . Recycled Matter . | . . . . . . . . . . . . . . . . . . . . . . . . . . . . . . . . . . . . Retrieved Matter . | . . . . . . . . . . . . . . . . . . . . . . . . . . . . . . . . . . . . Retrieved Components . | . . . . . . . . . . . . . . . . . . . . . . . . . . . . . . . . . . . . Parts Scanalyzed . | . . . . . . . . . . . . . . . . . . . . . . . . . . . . . . . . . . . . Part Schematics Acquired . | . . . . . . . . . . . . . . . . . . . . . . . . . . . . . . . . . . . . Parts Damaged . | . . . . . . . . . . . . . . . . . . . . . . . . . . . . . . . . . . . . Bothacking | -11 -10 -10 -10 -9 -8 -7 -7 -7 -7 -7 -7 -6 -6 -6 -6 -6 -5 -5 -5 -5 -5 -5 -5 -5 -4 -4 -4 -3 -3 -2 -2 -2 -1 -1 -1 ------------ Run | Jun Mat Min Exi Min Mat Fac Was Fac Low Low Zio Pro Fac Low Low Dat Pro Fac Was Fac Ext Cet Arc Hub Fac Arm Lab Res Tes Res Qua Sec Acc Com Ac0 Used RIF Installer . | . . . . . . . . . . . . . . . . . . . . . . . . . . . . . . . . . . . . Robots Hacked 11 | . . . . . . . . . . . . . . . . . . . . . . . . . . . . . . . . . . 11 . Non-combat . | . . . . . . . . . . . . . . . . . . . . . . . . . . . . . . . . . . . . Combat 11 | . . . . . . . . . . . . . . . . . . . . . . . . . . . . . . . . . . 11 . Robot Hacks Applied 11 | . . . . . . . . . . . . . . . . . . . . . . . . . . . . . . . . . . 11 . parse_system 11 | . . . . . . . . . . . . . . . . . . . . . . . . . . . . . . . . . . 11 . Relay Couplers Released . | . . . . . . . . . . . . . . . . . . . . . . . . . . . . . . . . . . . . Fabnet Peak Effective % . | . . . . . . . . . . . . . . . . . . . . . . . . . . . . . . . . . . . . Robots Rewired 25 | . . . . . . . . . . . . . . . . . . . . . 21 . . . . 4 . . . . . . . . . Allies Hacked 2 | . . . . . . . . . . . . . . . . . . . . . 1 . . . 1 . . . . . . . . . . Hacks Repelled . | . . . . . . . . . . . . . . . . . . . . . . . . . . . . . . . . . . . . Allies | -11 -10 -10 -10 -9 -8 -7 -7 -7 -7 -7 -7 -6 -6 -6 -6 -6 -5 -5 -5 -5 -5 -5 -5 -5 -4 -4 -4 -3 -3 -2 -2 -2 -1 -1 -1 -------- Run | Jun Mat Min Exi Min Mat Fac Was Fac Low Low Zio Pro Fac Low Low Dat Pro Fac Was Fac Ext Cet Arc Hub Fac Arm Lab Res Tes Res Qua Sec Acc Com Ac0 Total Allies 125 | . . . . 3 . . 19 1 . . 4 . . . . . 1 . . . 28 5 . 1 4 9 . 1 . . . . . 49 . Largest Group 39 | . . . . 3 . . 19 1 . . 4 4 . . . . 1 . . . 13 13 9 8 4 4 3 1 . . . . . 39 . Highest-Rated Group 4383 | . . . . 40 . . 465 10 . . 153 153 . . . . 96 . . . 624 784 612 573 156 293 182 135 . . . . . 4383 . Highest-Rated Ally 269 | . . . . 16 . . 35 10 . . 39 39 . . . . 96 . . . 159 159 96 96 39 81 81 135 . . . . . 269 . Zionite Dispatches 8 | . . . . . . . . . . . . . . . . . . . . . 2 . . 1 1 3 . 1 . . . . . . . Heavy 1 | . . . . . . . . . . . . . . . . . . . . . 1 . . . . . . . . . . . . . . Light 1 | . . . . . . . . . . . . . . . . . . . . . 1 . . . . . . . . . . . . . . Recon 1 | . . . . . . . . . . . . . . . . . . . . . . . . . . 1 . . . . . . . . . Fire 1 | . . . . . . . . . . . . . . . . . . . . . . . . . 1 . . . . . . . . . . Hacker 1 | . . . . . . . . . . . . . . . . . . . . . . . . . . 1 . . . . . . . . . Demo 1 | . . . . . . . . . . . . . . . . . . . . . . . . . . 1 . . . . . . . . . Hero 1 | . . . . . . . . . . . . . . . . . . . . . . . . . . . . 1 . . . . . . . Kinetic Resupply 1 | . . . . . . . . . . . . . . . . . . . . . . . . 1 . . . . . . . . . . . Total Orders 49 | . . . . . . . . . . . . . 3 . . . . . . . 1 12 2 8 . 2 . . . . . . . 21 . STAY 31 | . . . . . . . . . . . . . 1 . . . . . . . 1 10 1 6 . 1 . . . . . . . 11 . ROAM 1 | . . . . . . . . . . . . . 1 . . . . . . . . . . . . . . . . . . . . . . FOLLOW 16 | . . . . . . . . . . . . . . . . . . . . . . 2 1 2 . 1 . . . . . . . 10 . RETURN 1 | . . . . . . . . . . . . . 1 . . . . . . . . . . . . . . . . . . . . . . Ally Attacks 621 | . . . . 27 . . 45 . . . . . 10 . . . 10 1 . . 109 35 31 83 . 43 . . . . . . . 227 . Total Damage 26996 | . . . . 236 . . 1971 . . . . . . . . . 372 . . . 2588 1316 937 2843 . 2252 . . . . . . . 14481 . Kills 124 | . . . . 3 . . 6 . . . . . . . . . 4 . . . 13 6 4 26 . 19 . . . . . . . 43 . Allies Corrupted 3 | . . . . . . . . . . . . . . . . . . . . . 1 . . 1 1 . . . . . . . . . . Allies Melted 2 | . . . . . . . . . . . . . . . . . . . . . 1 . . . . . . . . . . . . 1 . Intel | -11 -10 -10 -10 -9 -8 -7 -7 -7 -7 -7 -7 -6 -6 -6 -6 -6 -5 -5 -5 -5 -5 -5 -5 -5 -4 -4 -4 -3 -3 -2 -2 -2 -1 -1 -1 ------- Run | Jun Mat Min Exi Min Mat Fac Was Fac Low Low Zio Pro Fac Low Low Dat Pro Fac Was Fac Ext Cet Arc Hub Fac Arm Lab Res Tes Res Qua Sec Acc Com Ac0 Robot Analysis Total . | . . . . . . . . . . . . . . . . . . . . . . . . . . . . . . . . . . . . Derelict Logs Recovered 11 | . . 1 . . . . . . 1 2 1 2 . . 1 . 3 . . . . . . . . . . . . . . . . . . Drone Launches 17 | . . . . . . . . . . . . . 12 . . . . 1 . . 4 . . . . . . . . . . . . . . Drone Recoveries 1 | . . . . . . . . . . . . . 1 . . . . . . . . . . . . . . . . . . . . . . Zionite Intel Received 56 | . . . . . . . . . . . . . 9 . . . . 3 . . 1 . . 4 4 2 . 2 8 . 7 6 6 4 . Main Access 1 | . . . . . . . . . . . . . . . . . . . . . . . . . . . . . . . . . 1 . . Branch Access 1 | . . . . . . . . . . . . . . . . . . . . . . . . . 1 . . . . . . . . . . Emergency Access 4 | . . . . . . . . . . . . . . . . . . . . . . . . 1 . . . 1 . . . 1 1 . . Guard Positions 3 | . . . . . . . . . . . . . 1 . . . . . . . . . . . . 1 . . 1 . . . . . . Component Stockpiles 6 | . . . . . . . . . . . . . 1 . . . . 1 . . . . . 1 1 . . . 1 . . . 1 . . Prototype Stockpiles 5 | . . . . . . . . . . . . . 1 . . . . 1 . . . . . . . . . . 1 . 1 1 . . . Component Schematics 4 | . . . . . . . . . . . . . 1 . . . . . . . . . . . . . . . . . 1 1 . 1 . Prototype Schematics 5 | . . . . . . . . . . . . . 1 . . . . 1 . . . . . . . 1 . . . . 1 . 1 . . Unaware Schematics 7 | . . . . . . . . . . . . . . . . . . . . . 1 . . . . . . . 2 . 1 2 . 1 . Unaware Analyses 3 | . . . . . . . . . . . . . 1 . . . . . . . . . . . 1 . . . . . 1 . . . . Trap Installations 4 | . . . . . . . . . . . . . . . . . . . . . . . . 1 . . . . 1 . 1 . . 1 . Active Terminals 2 | . . . . . . . . . . . . . 1 . . . . . . . . . . . . . . . 1 . . . . . . Active Garrisons 4 | . . . . . . . . . . . . . 1 . . . . . . . . . . 1 . . . 1 1 . . . . . . Depthwide Sectors/0 3 | . . . . . . . . . . . . . . . . . . . . . . . . . . . . . . . 1 1 1 . . Depthwide Sectors/-1 4 | . . . . . . . . . . . . . 1 . . . . . . . . . . . 1 . . . . . . . 1 1 . Exploration | -11 -10 -10 -10 -9 -8 -7 -7 -7 -7 -7 -7 -6 -6 -6 -6 -6 -5 -5 -5 -5 -5 -5 -5 -5 -4 -4 -4 -3 -3 -2 -2 -2 -1 -1 -1 ------------- Run | Jun Mat Min Exi Min Mat Fac Was Fac Low Low Zio Pro Fac Low Low Dat Pro Fac Was Fac Ext Cet Arc Hub Fac Arm Lab Res Tes Res Qua Sec Acc Com Ac0 Turns Passed 16989 | . 138 82 156 137 274 172 135 366 178 119 424 74 1267 196 109 20 224 346 89 176 1080 224 2100 1415 216 555 402 633 423 83 309 468 384 3499 516 Spaces Moved 29607 | 1 248 157 297 147 469 299 351 1038 602 476 855 232 2732 465 441 83 497 822 308 483 1044 206 144 1466 456 1070 270 1468 938 261 752 827 1225 6640 1837 Core 1318 | . 248 157 297 147 469 . . . . . . . . . . . . . . . . . . . . . . . . . . . . . . Treads . | . . . . . . . . . . . . . . . . . . . . . . . . . . . . . . . . . . . . Legs 1 | 1 . . . . . . . . . . . . . . . . . . . . . . . . . . . . . . . . . . . Wheels . | . . . . . . . . . . . . . . . . . . . . . . . . . . . . . . . . . . . . Hover . | . . . . . . . . . . . . . . . . . . . . . . . . . . . . . . . . . . . . Flight 28208 | . . . . . . 299 351 1038 602 476 855 232 2732 465 441 83 497 822 308 483 1044 206 144 1466 456 1070 270 1468 938 261 752 747 1225 6640 1837 Fastest Speed 11 | 120 50 50 50 50 50 32 26 25 25 25 25 25 24 24 24 24 17 24 25 25 15 25 25 15 21 12 21 21 12 21 12 21 19 19 11 Average Speed 24 | 120 50 50 50 72 50 36 32 25 25 25 25 25 24 24 24 24 23 24 25 25 24 25 25 24 22 22 21 21 20 21 20 21 19 23 21 Slowest Speed 120 | 120 50 50 50 100 50 40 34 26 25 25 25 25 27 24 24 24 24 28 25 25 25 25 25 25 25 25 25 92 22 21 21 93 21 97 77 Overloaded Moves 61 | . . . . . . . . . . . . . 11 . . . 1 . . . 1 . . 5 . 1 . . 8 . 10 . . . 24 Propulsion Burnouts . | . . . . . . . . . . . . . . . . . . . . . . . . . . . . . . . . . . . . Robots Hopped 123 | . . . . . . . . 1 . . . . 9 2 2 . . 3 . . 13 . . 6 6 2 . 8 3 . 1 5 4 48 10 Cave-ins Triggered . | . . . . . . . . . . . . . . . . . . . . . . . . . . . . . . . . . . . . Teleports 2 | . . . . . . . . . . . . . . . . . . . . . . . . . . . . . . . . . . 1 1 Microwarps 4 | . . . . . . . . . . . . . . . . . . . . . . . . . . . . . . . . 4 . . . Exploration Rate (%) 56 | 2 55 27 61 40 57 10 89 26 81 80 88 39 51 56 65 74 67 17 96 13 83 54 85 67 22 70 96 42 93 12 71 43 41 77 77 Regions Visited 35 Branch Regions 22 Pre-discovered Areas 24 | . 2 1 1 . . . . . . . 1 . 9 . . 1 . . . . . . . . 3 . . . . . 2 2 2 . . Known Exits Taken 28 | . . 1 1 1 1 . . 1 1 1 1 1 1 1 1 1 1 . . 1 1 1 1 1 1 1 1 1 1 1 1 1 1 . . Unknown Exits Taken 3 | 1 1 . . . . . . . . . . . . . . . . . . . . . . . . . . . . . . . . 1 . Scrap Searched 24 | . . 1 . 1 . . . . 2 2 4 4 . 4 2 . 4 . . . . . . . . . . . . . . . . . . Spaces Dug 163 | . . . . . . . . 6 2 . . . 29 . . . 4 4 . 4 5 . . 10 9 10 . 20 16 3 6 7 6 22 . Terrain Destroyed 368 | . . . . . . . . 6 2 . . . 58 . . . 4 11 . 4 5 . . 10 9 10 . 20 16 3 6 28 6 105 65 Melee 161 | . . . . . . . . 6 2 . . . 29 . . . 4 4 . 4 5 . . 10 9 10 . 20 15 3 6 7 6 21 . Projectile 110 | . . . . . . . . . . . . . . . . . . . . . . . . . . . . . 1 . . 21 . 23 65 AOE 97 | . . . . . . . . . . . . . 29 . . . . 7 . . . . . . . . . . . . . . . 61 . Terrain Rammed . | . . . . . . . . . . . . . . . . . . . . . . . . . . . . . . . . . . . . Walls Destroyed . | . . . . . . . . . . . . . . . . . . . . . . . . . . . . . . . . . . . . Machines Disabled . | . . . . . . . . . . . . . . . . . . . . . . . . . . . . . . . . . . . . Actions | -11 -10 -10 -10 -9 -8 -7 -7 -7 -7 -7 -7 -6 -6 -6 -6 -6 -5 -5 -5 -5 -5 -5 -5 -5 -4 -4 -4 -3 -3 -2 -2 -2 -1 -1 -1 --------- Run | Jun Mat Min Exi Min Mat Fac Was Fac Low Low Zio Pro Fac Low Low Dat Pro Fac Was Fac Ext Cet Arc Hub Fac Arm Lab Res Tes Res Qua Sec Acc Com Ac0 Total 37995 | . 261 159 300 174 503 356 371 1130 625 475 1062 241 3208 544 440 82 587 942 317 525 1822 325 2199 2480 522 1353 603 1692 1110 280 885 1010 1341 8149 1922 Wait 6958 | . 2 2 . 22 19 38 17 70 22 . 207 7 390 79 1 . 82 83 . 31 459 83 2051 993 46 200 295 117 121 6 108 187 89 1095 36 Move 29265 | . 247 156 296 146 468 299 350 1035 601 475 854 231 2714 460 436 82 496 816 307 482 1020 205 143 1454 445 1065 269 1451 931 260 749 742 1216 6548 1816 Hop 110 | . . . . . . . . 1 . . . . 8 2 2 . . 3 . . 10 . . 6 4 2 . 8 3 . 1 3 4 43 10 Pick Up 83 | . 2 . . 1 3 6 . 3 . . . . 1 1 . . 1 3 . . 3 . . 3 1 1 8 5 2 1 4 5 2 22 5 Fast Attach 171 | . . 1 . . 4 5 1 3 . . . . 12 1 . . . 6 4 3 5 3 . 2 3 11 4 27 8 1 2 12 3 44 6 Attach 62 | . . . . 2 3 4 1 1 . . . . 4 . . . . 2 . . 3 . . 1 2 1 5 1 . 2 2 7 2 14 5 Detach 70 | . 2 . . . 1 . . . . . . . 4 . . . . 2 . . 4 1 . . . . 2 6 2 1 2 7 . 31 5 Swap 67 | . . . 1 . . . . 3 . . . . 8 . 1 . . 2 . . 1 3 . 2 . 1 6 2 3 3 . 11 4 12 4 Drop 206 | . 5 . . 1 2 2 2 8 . . . . 11 . . . 1 6 5 2 7 3 . 5 2 8 7 25 9 2 6 13 4 58 12 Fire 306 | . 2 . 3 2 3 . . . . . . . 2 . . . . 1 . . . 21 . . . . . 11 1 . . 9 . 228 23 Melee 341 | . . . . . . 2 . 6 2 . 1 3 54 1 . . 7 9 1 7 16 6 5 14 19 12 7 39 30 4 11 14 17 54 . Ram . | . . . . . . . . . . . . . . . . . . . . . . . . . . . . . . . . . . . . Kick 1 | . 1 . . . . . . . . . . . . . . . . . . . . . . . . . . . . . . . . . . Crush . | . . . . . . . . . . . . . . . . . . . . . . . . . . . . . . . . . . . . Escape Stasis 80 | . . . . . . . . . . . . . . . . . . 9 . . 58 . . . . 13 . . . . . . . . . Rewire 275 | . . . . . . . . . . . . . . . . . . . . . 236 . . . . 39 . . . . . . . . . Trap . | . . . . . . . . . . . . . . . . . . . . . . . . . . . . . . . . . . . . Miscellaneous . | . . . . . . . . . . . . . . . . . . . . . . . . . . . . . . . . . . . . Route ------- -11/Junkyard -10/Materials (discovered 2 exits: [*Mat] / [*Min]) -10/Mines -10/Exiles (discovered 2 exits: *Min x2) -9/Mines -8/Materials -7/Factory -7/Waste -7/Factory (discovered 5 exits: *Fac / Sto x2 / *Low x2) -7/Lower Caves -7/Lower Caves (discovered 2 exits: *Fac / *Zio) -7/Zion -6/Proximity Caves -6/Factory (discovered 3 exits: *Fac x2 / *Low) -6/Lower Caves -6/Lower Caves (discovered 2 exits: *Fac / *Dat) -6/Data Miner -5/Proximity Caves -5/Factory (discovered 2 exits: Fac / Upp) -5/Waste -5/Factory (discovered 2 exits: *Ext / DSF) -5/Extension (discovered 2 exits: *Fac / *Cet) -5/Cetus -5/Archives (discovered 3 exits: *Fac / *Hub x2) -5/Hub_04(d) -4/Factory (discovered 3 exits: *Upp x2 / *Arm) -4/Armory -4/Lab -3/Research (discovered 3 exits: *Res x2 / *Tes) -3/Testing -2/Research -2/Quarantine (discovered 2 exits: *Acc / *Sec) -2/Section 7 -1/Access (discovered 2 exits: Sur / *Com) -1/Command (discovered 3 exits: *Sur x2 / [*Ac0]) -1/Access_0 Near Former Tau Ceti IV History --------- Turn | Location | Event 1 | -11/Junkyard | Discovered new exit (range 0) 1 | -11/Junkyard | Entered Materials 104 | -10/Materials | Discovered new exit (range 10) 129 | -10/Materials | Discovered new exit (range 10) 139 | -10/Materials | Entered Mines 152 | -10/Mines | Learned location of Zion (-7) 160 | -10/Mines | Assembled infested the area 219 | -10/Mines | Deemed a non-threat by the Exiles lab entrance 219 | -10/Mines | Discovered new exit (range 5) 220 | -10/Mines | Identified exit to Exiles 221 | -10/Mines | Entered Exiles 229 | -10/Exiles | Discovered new exit (range 15) 235 | -10/Exiles | Met 8R-AWN 242 | -10/Exiles | Met EX-HEX 256 | -10/Exiles | Met EX-BIN 262 | -10/Exiles | Met EX-DEC 281 | -10/Exiles | Aligned with FarCom system 281 | -10/Exiles | Given EX-Vault access code 295 | -10/Exiles | Opened EX-Vault 300 | -10/Exiles | Build established: Mutant 306 | -10/Exiles | Warned to stay clear of 0b10 Research branches 354 | -10/Exiles | Attacked by the Exiles 371 | -10/Exiles | Discovered new exit (range 14) 377 | -10/Exiles | Identified exit to Mines 377 | -10/Exiles | Entered Mines 393 | -9/Mines | Assisted by bots powering up and referring to "LRC-V3" 433 | -9/Mines | Found the Drone Emporium 437 | -9/Mines | Found Prototype Device 506 | -9/Mines | Discovered new exit (range 7) 513 | -9/Mines | Identified exit to Materials 514 | -9/Mines | Entered Materials 514 | -8/Materials | Evolved 4 slots: Propulsion x3, Utility x1 515 | -8/Materials | Identified Bomb Drone Bay 775 | -8/Materials | Discovered new exit (range 19) 788 | -8/Materials | Identified exit to Factory 788 | -8/Materials | Entered Factory 788 | -7/Factory | Evolved 2 slots: Utility x2 814 | -7/Factory | Lost 6 parts (4n2w) 853 | -7/Factory | Discovered new exit (range 13) 858 | -7/Factory | Identified exit to Factory 960 | -7/Factory | Sucked down chute 960 | -7/Factory | Entered Waste 963 | -7/Waste | Spotted C-40 Crusher 964 | -7/Waste | Spotted C-40 Crusher 964 | -7/Waste | Spotted C-40 Crusher 971 | -7/Waste | Spotted C-40 Crusher 992 | -7/Waste | Spotted C-40 Crusher 995 | -7/Waste | Spotted C-40 Crusher 1054 | -7/Waste | Warlord forces began an assault 1092 | -7/Waste | Discovered new exit (range 12) 1095 | -7/Waste | Identified exit to Factory 1095 | -7/Waste | Entered Factory 1171 | -7/Factory | Identified exit to Storage 1171 | -7/Factory | Identified exit to Lower Caves 1305 | -7/Factory | Discovered exit to Factory (range 6) 1459 | -7/Factory | Build established: Scout 1461 | -7/Factory | Entered Lower Caves 1486 | -7/Lower Caves | Encountered a Warlord checkpoint 1620 | -7/Lower Caves | Learned 4 Factory zone layouts 1632 | -7/Lower Caves | Discovered new exit (range 14) 1634 | -7/Lower Caves | Attracted the attention of an 0b10 checkpoint 1635 | -7/Lower Caves | Identified exit to Lower Caves 1639 | -7/Lower Caves | Entered another Lower Caves area 1639 | -7/Lower Caves | Discovered exit to Factory (range 13) 1666 | -7/Lower Caves | Learned Factory emergency access door positions 1706 | -7/Lower Caves | Encountered a Warlord checkpoint 1707 | -7/Lower Caves | Learned Factory emergency access door positions 1742 | -7/Lower Caves | Discovered new exit (range 5) 1743 | -7/Lower Caves | Identified exit to Zion 1758 | -7/Lower Caves | Entered Zion 1765 | -7/Zion | Acquired unknown access codes intercepted by a Zionite 1768 | -7/Zion | Discovered new exit (range 19) 1790 | -7/Zion | Learned location of 1 exit from Factory 1815 | -7/Zion | Learned location of Warlord (-5) 1838 | -7/Zion | Learned Factory emergency access door positions 1919 | -7/Zion | Imprinted 1921 | -7/Zion | Declared Zion's savior 1945 | -7/Zion | Visited the Megawrench Repair Shop 1945 | -7/Zion | Megawrench repaired 2 parts 1975 | -7/Zion | Identified exit to Proximity Caves 2182 | -7/Zion | Entered Proximity Caves 2182 | -6/Proximity Caves | Accompanied by 4 allies 2231 | -6/Proximity Caves | Spotter reported a threat 2234 | -6/Proximity Caves | Spotter reported a threat 2247 | -6/Proximity Caves | Learned 4 Factory zone layouts 2255 | -6/Proximity Caves | Discovered exit to Factory (range 7) 2256 | -6/Proximity Caves | Entered Factory 2256 | -6/Factory | Evolved 2 slots: Utility x2 2257 | -6/Factory | Identified exit to Lower Caves 2258 | -6/Factory | Identified exit to Factory 2311 | -6/Factory | Identified exit to DSF 2332 | -6/Factory | Retrieved Zion intel report: Active Terminals 2339 | -6/Factory | Retrieved Zion intel report: Depthwide Sectors/-1 2353 | -6/Factory | Retrieved Zion intel report: Unaware Analyses 2366 | -6/Factory | Retrieved Zion intel report: Active Garrisons 2377 | -6/Factory | Identified exit to DSF 2439 | -6/Factory | Retrieved Zion intel report: Prototype Stockpiles 2455 | -6/Factory | Retrieved Zion intel report: Component Stockpiles 2467 | -6/Factory | Identified exit to DSF 2532 | -6/Factory | Retrieved Zion intel report: Guard Positions 2589 | -6/Factory | Retrieved Zion intel report: Prototype Schematics 2606 | -6/Factory | Search patrols dispatched 2615 | -6/Factory | Retrieved Zion intel report: Component Schematics 3282 | -6/Factory | Cargo convoy interrupted 3306 | -6/Factory | Search patrols dispatched 3314 | -6/Factory | Garrison activated, responded to threat 3348 | -6/Factory | Lost 3 parts (2n1u) 3523 | -6/Factory | Entered Lower Caves 3644 | -6/Lower Caves | Discovered new exit (range 19) 3710 | -6/Lower Caves | Attracted the attention of an 0b10 checkpoint 3719 | -6/Lower Caves | Identified exit to Lower Caves 3719 | -6/Lower Caves | Entered another Lower Caves area 3730 | -6/Lower Caves | Discovered exit to Factory (range 12) 3787 | -6/Lower Caves | Encountered a Warlord checkpoint 3808 | -6/Lower Caves | Discovered new exit (range 16) 3809 | -6/Lower Caves | Learned location of 1 exit from Factory 3827 | -6/Lower Caves | Identified exit to Data Miner 3828 | -6/Lower Caves | Entered Data Miner 3828 | -6/Data Miner | Discovered new exit (range 6) 3832 | -6/Data Miner | Met Data Miner 3838 | -6/Data Miner | Learned location of Section 7 (-2) 3838 | -6/Data Miner | Acquired the access code to Warlord's prototype stash 3842 | -6/Data Miner | Received God Mode back door access code from Data Miner 3848 | -6/Data Miner | Identified exit to Proximity Caves 3848 | -6/Data Miner | Entered Proximity Caves 3930 | -5/Proximity Caves | Escorted by Enhanced Grunt 3937 | -5/Proximity Caves | Spotter reported a threat 4006 | -5/Proximity Caves | Learned location of 1 exit from Factory 4007 | -5/Proximity Caves | Learned Factory terminal intel 4072 | -5/Proximity Caves | Entered Factory 4072 | -5/Factory | Evolved 2 slots: Propulsion x1, Utility x1 4073 | -5/Factory | Identified exit to Upper Caves 4073 | -5/Factory | Identified exit to Factory 4075 | -5/Factory | Loaded intel: 28 terminal locations 4101 | -5/Factory | Retrieved Zion intel report: Prototype Stockpiles 4137 | -5/Factory | Retrieved Zion intel report: Component Stockpiles 4152 | -5/Factory | Retrieved Zion intel report: Prototype Schematics 4229 | -5/Factory | Spotted B-75 Beast 4418 | -5/Factory | Manually triggered Chute Trap 4418 | -5/Factory | Sucked down chute 4418 | -5/Factory | Entered Waste 4418 | -5/Waste | The area was eerily silent 4455 | -5/Waste | Discovered new exit (range 12) 4506 | -5/Waste | Identified exit to Factory 4507 | -5/Waste | Entered Factory 4590 | -5/Factory | Identified exit to DSF 4653 | -5/Factory | Discovered new exit (range 3) 4653 | -5/Factory | Identified exit to Extension 4683 | -5/Factory | Entered Extension 4777 | -5/Extension | Zion Light squad teleported in 4828 | -5/Extension | Build established: Ninja 4919 | -5/Extension | Found Prototype Protection 4919 | -5/Extension | Identified Zio. Weapon Casing 5404 | -5/Extension | Spotted B-75 Beast 5418 | -5/Extension | Spotted B-75 Beast 5445 | -5/Extension | Rescued A7 5474 | -5/Extension | Retrieved Zion intel report: Unaware Schematics 5642 | -5/Extension | Rescued a captive Derelict 5667 | -5/Extension | Zion Heavy squad teleported in 5688 | -5/Extension | Discovered exit to Factory (range 10) 5688 | -5/Extension | Discovered new exit (range 6) 5700 | -5/Extension | Identified exit to Cetus 5763 | -5/Extension | Entered Cetus 5763 | -5/Cetus | Accompanied by 13 allies (A7) 5768 | -5/Cetus | Acquired a Cetus Manufacturing Module code from A7 5775 | -5/Cetus | Spotted Cetus Guard 5775 | -5/Cetus | Spotted Cetus Guard 5776 | -5/Cetus | Spotted Cetus Guard 5778 | -5/Cetus | Spotted Cetus Guard 5789 | -5/Cetus | Allies destroyed Cetus Guard 5800 | -5/Cetus | Allies destroyed Cetus Guard 5801 | -5/Cetus | Allies destroyed Cetus Guard 5816 | -5/Cetus | Started Cetus Manufacturing Module 5835 | -5/Cetus | Discovered new exit (range 21) 5841 | -5/Cetus | Manufactured an Enhanced Grunt 5866 | -5/Cetus | Manufactured an Enhanced Grunt 5891 | -5/Cetus | Manufactured an Enhanced Grunt 5909 | -5/Cetus | Found Prototype Protection 5909 | -5/Cetus | Identified Med. Regenerative Plating 5912 | -5/Cetus | Identified exit to Archives 5916 | -5/Cetus | Manufactured an Enhanced Grunt 5941 | -5/Cetus | Manufactured an Enhanced Grunt 5957 | -5/Cetus | Destroyed A7 5960 | -5/Cetus | Extracted ID and sensor layout for unrecognized location from A7's data core 5987 | -5/Cetus | Entered Archives 5987 | -5/Archives | Accompanied by 9 allies 5989 | -5/Archives | Build established: Commander-Ninja 6052 | -5/Archives | Discovered new exit (range 22) 6054 | -5/Archives | Discovered exit to Factory (range 21) 6054 | -5/Archives | Discovered new exit (range 17) 6058 | -5/Archives | Identified exit to Hub_04(d) 8087 | -5/Archives | Entered Hub_04(d) 8087 | -5/Hub_04(d) | Accompanied by 8 allies 8127 | -5/Hub_04(d) | Retrieved Zion intel report: Emergency Access 8147 | -5/Hub_04(d) | Spotted B-75 Beast 8270 | -5/Hub_04(d) | Retrieved Zion intel report: Active Garrisons 8279 | -5/Hub_04(d) | Retrieved Zion intel report: Component Stockpiles 8282 | -5/Hub_04(d) | Retrieved Zion intel report: Trap Installations 8283 | -5/Hub_04(d) | Zion Kinetic Resupply teleported in 8719 | -5/Hub_04(d) | Build established: Ninja 9178 | -5/Hub_04(d) | Discovered exit to Factory (range 10) 9249 | -5/Hub_04(d) | Network Hub disabled 9251 | -5/Hub_04(d) | Spotted Lightning 9252 | -5/Hub_04(d) | Spotted Lightning 9259 | -5/Hub_04(d) | Spotted Lightning 9261 | -5/Hub_04(d) | Spotted Lightning 9300 | -5/Hub_04(d) | Spotted Lightning 9312 | -5/Hub_04(d) | Terminal network hard line cut 9413 | -5/Hub_04(d) | Spotted Lightning 9458 | -5/Hub_04(d) | Spotted Lightning 9459 | -5/Hub_04(d) | Network Hub disabled 9502 | -5/Hub_04(d) | Entered Factory 9502 | -4/Factory | Evolved 2 slots: Power x1, Propulsion x1 9513 | -4/Factory | Identified exit to DSF 9520 | -4/Factory | Retrieved Zion intel report: Branch Access 9520 | -4/Factory | Identified exit to Upper Caves 9520 | -4/Factory | Identified exit to Armory 9522 | -4/Factory | Retrieved Zion intel report: Unaware Analyses 9553 | -4/Factory | Identified exit to DSF 9563 | -4/Factory | Retrieved Zion intel report: Depthwide Sectors/-1 9583 | -4/Factory | Garrison activated, responded to threat 9650 | -4/Factory | Incoming investigation squad redirected 9680 | -4/Factory | Retrieved Zion intel report: Component Stockpiles 9681 | -4/Factory | Zion Fire squad teleported in 9684 | -4/Factory | Spotted B-86 Titan 9718 | -4/Factory | Entered Armory 9883 | -4/Armory | Repaired Centrium Medium Armor Plating? 9965 | -4/Armory | Fabricated Biomechanical Wings (x1) 9998 | -4/Armory | Retrieved Zion intel report: Guard Positions 9999 | -4/Armory | Zion Recon squad teleported in 10065 | -4/Armory | Fabricated Field Propulsion Array (x2) 10129 | -4/Armory | Spotted B-86 Titan 10204 | -4/Armory | Retrieved Zion intel report: Prototype Schematics 10205 | -4/Armory | Zion Demo squad teleported in 10219 | -4/Armory | Zion Hacker squad teleported in 10261 | -4/Armory | Discovered new exit (range 2) 10261 | -4/Armory | Identified exit to Lab 10273 | -4/Armory | Entered Lab 10273 | -4/Lab | Accompanied by 3 allies 10298 | -4/Lab | Build established: Scout 10314 | -4/Lab | Discovered new exit (range 9) 10499 | -4/Lab | Identified exit to Research 10550 | -4/Lab | Hidden lab's door opened automatically 10550 | -4/Lab | Sensor layout match revealed 10551 | -4/Lab | Gained access to the hidden lab's interior 10557 | -4/Lab | Found Prototype Energy Cannon 10558 | -4/Lab | Found Prototype Device 10559 | -4/Lab | Identified AEGIS Remote Shield 10562 | -4/Lab | Identified Warp Cannon 10573 | -4/Lab | Found Alien Artifact 10573 | -4/Lab | Identified Core Expander 10573 | -4/Lab | Installed Core Expander, added new Utility slot 10578 | -4/Lab | Found Alien Artifact 10578 | -4/Lab | Identified Integrated Dissipator 10578 | -4/Lab | Installed Integrated Dissipator, increased core heat dissipation (+20) 10583 | -4/Lab | Found Alien Artifact 10585 | -4/Lab | Found Alien Artifact 10596 | -4/Lab | Found Prototype Hackware 10648 | -4/Lab | Identified Core Reset Matrix 10648 | -4/Lab | Identified Transdimensional Reconstructor 10648 | -4/Lab | Used Core Reset Matrix 10675 | -4/Lab | Entered Research 10675 | -3/Research | Evolved 2 slots: Propulsion x1, Utility x1 10689 | -3/Research | Zion hero teleported in (AD-0RF) 10737 | -3/Research | Destroyed AD-0RF 10743 | -3/Research | Found Prototype Special Weapon 10743 | -3/Research | Identified AD-0RF's Magmablaster 10867 | -3/Research | Found Prototype Processor 10874 | -3/Research | Found Prototype Device 10874 | -3/Research | Identified Exp. Thermal Shield 11063 | -3/Research | Discovered new exit (range 11) 11082 | -3/Research | Identified exit to Research 11131 | -3/Research | Retrieved Zion intel report: Active Garrisons 11142 | -3/Research | Discovered exit to Research (range 20) 11156 | -3/Research | Build established: Scavenger-Scout 11188 | -3/Research | Found Unknown Device 11188 | -3/Research | Identified Antimissile System 11235 | -3/Research | Retrieved Zion intel report: Emergency Access 11300 | -3/Research | Discovered new exit (range 7) 11308 | -3/Research | Identified exit to Testing 11308 | -3/Research | Entered Testing 11358 | -3/Testing | Retrieved Zion intel report: Trap Installations 11377 | -3/Testing | Retrieved Zion intel report: Active Terminals 11438 | -3/Testing | Retrieved Zion intel report: Active Garrisons 11468 | -3/Testing | Retrieved Zion intel report: Prototype Stockpiles 11494 | -3/Testing | Retrieved Zion intel report: Component Stockpiles 11501 | -3/Testing | Discovered exit to Research (range 10) 11504 | -3/Testing | Retrieved Zion intel report: Guard Positions 11527 | -3/Testing | Retrieved Zion intel report: Unaware Schematics 11589 | -3/Testing | Retrieved Zion intel report: Unaware Schematics 11731 | -3/Testing | Entered Research 11731 | -2/Research | Evolved 2 slots: Utility x2 11735 | -2/Research | Spotted B-90 Cyclops 11768 | -2/Research | Identified exit to DSF 11810 | -2/Research | Discovered new exit (range 8) 11811 | -2/Research | Identified exit to Quarantine 11814 | -2/Research | Entered Quarantine 11815 | -2/Quarantine | Detected hypermatrix surge 11815 | -2/Quarantine | Sensed 16 artifacts in vicinity 11852 | -2/Quarantine | Retrieved Zion intel report: Trap Installations 11860 | -2/Quarantine | Retrieved Zion intel report: Unaware Schematics 11899 | -2/Quarantine | Retrieved Zion intel report: Prototype Stockpiles 11901 | -2/Quarantine | Retrieved Zion intel report: Prototype Schematics 11901 | -2/Quarantine | Identified Exp. Targeting Computer 11908 | -2/Quarantine | Found Transdimensional Reconstructor 11919 | -2/Quarantine | Found Subatomic Replicator 11923 | -2/Quarantine | Retrieved Zion intel report: Component Schematics 11992 | -2/Quarantine | Retrieved Zion intel report: Unaware Analyses 11996 | -2/Quarantine | Discovered new exit (range 12) 12001 | -2/Quarantine | Identified Quantum Router 12012 | -2/Quarantine | Found Core Cannon 12014 | -2/Quarantine | Identified exit to Access 12026 | -2/Quarantine | Retrieved Zion intel report: Depthwide Sectors/0 12102 | -2/Quarantine | Spotted Fortress 12103 | -2/Quarantine | Build established: Alien-Ninja 12118 | -2/Quarantine | Discovered new exit (range 5) 12118 | -2/Quarantine | Identified exit to Section 7 12123 | -2/Quarantine | Entered Section 7 12124 | -2/Section 7 | Sensed 23 artifacts in vicinity 12125 | -2/Section 7 | Spotted S7 Guard 12139 | -2/Section 7 | Found Integrated Thermoelectric Network 12139 | -2/Section 7 | Installed Integrated Thermoelectric Network, gained heat-energy exchange potential 12166 | -2/Section 7 | Retrieved Zion intel report: Emergency Access 12169 | -2/Section 7 | Retrieved Zion intel report: Unaware Schematics 12170 | -2/Section 7 | Incoming investigation squad redirected 12226 | -2/Section 7 | Retrieved Zion intel report: Depthwide Sectors/0 12273 | -2/Section 7 | Found Integrated Reactor 12273 | -2/Section 7 | Installed Integrated Reactor, increased core energy generation (+10) 12284 | -2/Section 7 | Found Integrated Reactor 12284 | -2/Section 7 | Installed Integrated Reactor, increased core energy generation (+10) 12475 | -2/Section 7 | Spotted B-90 Cyclops 12508 | -2/Section 7 | Found Microwarp Drive 12516 | -2/Section 7 | Found LRC Boosters 12516 | -2/Section 7 | Installed LRC Boosters, increased mass support (+10) 12554 | -2/Section 7 | Spotted Alpha 7 12554 | -2/Section 7 | Spotted Alpha 7 12559 | -2/Section 7 | Retrieved Zion intel report: Prototype Stockpiles 12567 | -2/Section 7 | Retrieved Zion intel report: Unaware Schematics 12569 | -2/Section 7 | Discovered exit to Access (range 19) 12570 | -2/Section 7 | Retrieved Zion intel report: Component Schematics 12581 | -2/Section 7 | Found Integrity Redistributor 12591 | -2/Section 7 | Entered Access 12591 | -1/Access | Evolved 2 slots: Propulsion x1, Utility x1 12633 | -1/Access | Spotted B-99 Colossus 12637 | -1/Access | Spotted B-99 Colossus 12637 | -1/Access | Spotted B-99 Colossus 12668 | -1/Access | Retrieved Zion intel report: Depthwide Sectors/0 12789 | -1/Access | Retrieved Zion intel report: Main Access 12789 | -1/Access | Identified exit to Surface 12795 | -1/Access | Retrieved Zion intel report: Depthwide Sectors/-1 12824 | -1/Access | Retrieved Zion intel report: Emergency Access 12845 | -1/Access | Retrieved Zion intel report: Prototype Schematics 12895 | -1/Access | Retrieved Zion intel report: Component Stockpiles 12924 | -1/Access | Discovered new exit (range 7) 12925 | -1/Access | Identified exit to Command 12975 | -1/Access | Entered Command 12996 | -1/Command | Spotted B-99 Colossus 13062 | -1/Command | Phase Generator disabled 13080 | -1/Command | Retrieved Zion intel report: Trap Installations 13084 | -1/Command | Retrieved Zion intel report: Unaware Schematics 13456 | -1/Command | Disengaged cave seal 13456 | -1/Command | Zionites emerged from the dark tunnel 13525 | -1/Command | Spotted B-99 Colossus 13533 | -1/Command | Retrieved Zion intel report: Component Schematics 13541 | -1/Command | Retrieved Zion intel report: Depthwide Sectors/-1 13582 | -1/Command | Disengaged cave seal 13582 | -1/Command | Zionites emerged from the dark tunnel 13763 | -1/Command | First assault squad dispatched 13779 | -1/Command | Incoming assault squad redirected 13861 | -1/Command | Zionites emerged from the dark tunnel 13904 | -1/Command | Spotted M Guard 13905 | -1/Command | Spotted M Guard 13906 | -1/Command | Spotted Combat Programmer 13908 | -1/Command | Spotted Combat Programmer 13943 | -1/Command | Allies destroyed Combat Programmer 13948 | -1/Command | Allies destroyed Combat Programmer 13959 | -1/Command | Allies destroyed M Guard 13963 | -1/Command | Allies destroyed M Guard 13963 | -1/Command | All MAIN.C guards destroyed 14054 | -1/Command | Build established: Commander-Scout 14082 | -1/Command | Met MAIN.C 14086 | -1/Command | 0b10 Conduit disabled 14097 | -1/Command | Allies destroyed MAIN.C Shell 14097 | -1/Command | MAIN.C activated Command garrisons 14106 | -1/Command | Allies destroyed MAIN.C 14108 | -1/Command | Discovered exit to Surface (range 38) 14108 | -1/Command | Discovered exit to Surface (range 98) 14108 | -1/Command | Extracted map data and part IDs from MAIN.C's data core 14109 | -1/Command | Found Zero-point Reactor 14114 | -1/Command | Found Zero-point Reactor 14115 | -1/Command | Found Exp. Powered Armor 14171 | -1/Command | Found Exp. System Purifier 14465 | -1/Command | Build established: Commander-Sprinter 15004 | -1/Command | Found Exp. Phase Shifter 15014 | -1/Command | Found Gamma Refractor 15109 | -1/Command | Found Exp. Targeting Computer 15111 | -1/Command | Found Exp. Core Analyzer 15562 | -1/Command | Found Zio. Shade Armor 15586 | -1/Command | Found Exp. Weapon Cycler 15620 | -1/Command | Found Exp. Targeting Computer 15770 | -1/Command | Found Zio. Shade Armor 15929 | -1/Command | Found Exp. Targeting Computer 16156 | -1/Command | Found Exp. Core Analyzer 16314 | -1/Command | Used Integrity Redistributor, redistributed integrity from core (-104) 16339 | -1/Command | Found Exp. Targeting Computer 16470 | -1/Command | Warped through subspace to slip node 16470 | -1/Command | Discovered new exit (range 4) 16474 | -1/Command | Entered Access_0 16475 | -1/Access_0 | Sensed 1 artifact in vicinity 16475 | -1/Access_0 | Met Architect 16492 | -1/Access_0 | Subspace Access Node disabled 16510 | -1/Access_0 | Subspace Access Node disabled 16526 | -1/Access_0 | A6 warped into view 16569 | -1/Access_0 | A5 warped into view 16613 | -1/Access_0 | Architect warped through subspace 16636 | -1/Access_0 | Destroyed A8 16668 | -1/Access_0 | Subspace Access Node disabled 16669 | -1/Access_0 | Architect warped through subspace 16712 | -1/Access_0 | Subspace Access Node disabled 16724 | -1/Access_0 | A4 warped into view 16754 | -1/Access_0 | Build established: Scavenger-Sprinter 16881 | -1/Access_0 | A3 warped into view 16981 | -1/Access_0 | Destroyed Architect 16982 | -1/Access_0 | Architect triggered a singularity event 16982 | -1/Access_0 | Extracted unknown sensor trigger ID from Architect's data core 16983 | -1/Access_0 | Found Hpw. Transdimensional Reconstructor 16983 | -1/Access_0 | Warped through subspace to slip node 16983 | -1/Access_0 | Discovered exit to Surface (range 8) 16986 | -1/Access_0 | Used Subatomic Replicator to replicate AD-0RF's Magmablaster 16990 | *** | Escaped singularity! Last Messages --------------- 16981_ Architect destroyed. 16982_ A0_COM: Initiating irreversible singularity event. Goodbye. 16982_ HV Slug penetrates Wall. 16982_ Acquired 90 matter. 16982_ Acquired data core, extracted unknown sensor trigger ID. 16983_ A0_COM: 10. 16983_ Acquired Hpw. Transdimensional Reconstructor. 16983_ Warped through subspace, drawn to slip node. 16983_ EXIT=FOUND: SURFACE 16984_ A0_COM: 9. 16985_ A0_COM: 8. 16985_ Dropped AD-0RF's Magmablaster. 16986_ A0_COM: 7. 16986_ Replicated AD-0RF's Magmablaster. 16987_ A0_COM: 6. 16987_ Acquired AD-0RF's Magmablaster. 16988_ A0_COM: 5. 16989_ A0_COM: 4. 16989_ Acquired AD-0RF's Magmablaster. 16990_ A0_COM: 3. Map ----- +----------------------------------------------------+ | | | | | | | | | | | | | | | | | | | | | | | | | | | | | | | | | ?????????????????????????????????????????????????? | | ?????????????????????????????????????????????????? | | ?????????????????????????????????????????????????? | | ?????????????????????????????????????????????????? | | ?????????????????????????????????????????????????? | | ?????????????????????????????????????????????????? | | ????????????????????????###??????????????????????? | | ???????????????????????## ##?????????????????????? | | ???????????????????????# #?????????????????????? | | ???????????????????????# @ #?????????????????????? | | ??????????????????????## #?????????????????????? | | ??????????????????????# #?????????????????????? | | ??????????????????????# ##?????????????????????? | | ??????????????????????## #?????????????????????? | | ??????????????????????# #?????????????????????? | | ??????????????????????# ##?????????????????????? | | ??????????????????????# < #?????????????????????? | | ??????????????????????# ##?????????????????????? | | ??????????????????????## #??????????????????????? | | ???????????????????????####??????????????????????? | | ?????????????????????????????????????????????????? | | ?????????????????????????????????????????????????? | | ?????????????????????????????????????????????????? | | ?????????????????????????????????????????????????? | | ?????????????????????????????????????????????????? | | ?????????????????????????????????????????????????? | | ?????????????????????????????????????????????????? | | ?????????????????????????????????????????????????? | | ?????????????????????????????????????????????????? | | ?????????????????????????????????????????????????? | | ?????????????????????????????????????????????????? | | ?????????????????????????????????????????????????? | | ?????????????????????????????????????????????????? | | ?????????????????????????????????????????????????? | +----------------------------------------------------+ Best States ------------- Heat Dissipation 94 Coolant Potential 120 Energy Generation 97 Energy Capacity 2690 Matter Stores 300 Matter Capacity 300 Sight Range 23 Robot Scan Range 16 Terrain Scan Range 24 Terrain Scan Density 10 ECM Strength 1 Jamming Range 14 Power Amplification 30 Armor Coverage 1025 Resistance: KI 30 Resistance: TH 30 Resistance: EX 30 Resistance: EM 30 Resistance: I 30 Resistance: S 30 Resistance: P 30 Utility Shielding 90 Weapon Shielding 100 Point Defense Rating 240 Weapon Cycling 30 Phase Shifting 20 Evasion (%) 101 Targeting Accuracy 24 Core Analysis 12 Armor Integrity Analysis 40 Recoil Reduction 2 Energy Filtering 50 Particle Charging 30 Offensive Hacking 48 Authchip Count 1 Item Schematics ----------------- Imp. Energy Well | -2/Quarantine | Z-intel Exp. Targeting Computer | -2/Quarantine | Z-intel Adv. EM Disruption Field | -2/Quarantine | Z-intel Adv. Gravity Neutralizer | -2/Quarantine | Z-intel Hvy. Antimatter Reactor | -2/Quarantine | Z-intel Proton Burst Cannon | -2/Quarantine | Z-intel Gui. Micro-nuke Launcher | -2/Quarantine | Z-intel Mni. Smartbomb Launcher | -2/Quarantine | Z-intel Exp. Thermal Shield | -2/Quarantine | Z-intel Quantum Capacitor | -2/Quarantine | Z-intel Nuclear Pulse Array | -2/Quarantine | Z-intel Mni. Drone Bay | -2/Quarantine | Z-intel Imp. Reaction Control System | -2/Quarantine | Z-intel Drone Bay | -2/Quarantine | Z-intel Point Defense System | -2/Quarantine | Z-intel Reaction Control System | -2/Quarantine | Z-intel Biometal Medium Treads | -2/Quarantine | Z-intel Energy Filter | -2/Quarantine | Z-intel Adv. Power Amplifier | -2/Quarantine | Z-intel Nova Cannon | -2/Quarantine | Z-intel Adv. Hacking Suite | -2/Quarantine | Z-intel Biometal Leg | -2/Quarantine | Z-intel Imp. Arc Projector | -2/Quarantine | Z-intel Adv. Focal Shield | -2/Quarantine | Z-intel Hvy. Shock Bomb Launcher | -2/Quarantine | Z-intel Centrium Wheel | -2/Section 7 | Z-intel Imp. Actuator Array | -2/Section 7 | Z-intel Point Defense Array | -2/Section 7 | Z-intel Adv. Force Field | -2/Section 7 | Z-intel Adv. Shield Generator | -2/Section 7 | Z-intel Hvy. Treads | -2/Section 7 | Z-intel Gamma Bomb Array | -2/Section 7 | Z-intel Impulse Thruster | -2/Section 7 | Z-intel EM Disruption Field | -2/Section 7 | Z-intel Med. Storage Unit | -2/Section 7 | Z-intel Hacking Suite | -2/Section 7 | Z-intel Recoil Nullifier | -2/Section 7 | Z-intel Hvy. Hardcell Cannon | -1/Access | Z-intel Hdn. Centrium Leg | -1/Access | Z-intel Enh. Biometal Leg | -1/Access | Z-intel Spectral Analyzer | -1/Access | Z-intel Adv. Quantum Shading Machine | -1/Access | Z-intel Imp. Quantum Reactor | -1/Access | Z-intel Exp. Core Shielding | -1/Access | Z-intel Com. Particle Reactor | -1/Access | Z-intel Prc. Phase Gun | -1/Access | Z-intel Point Singularity Launcher | -1/Access | Z-intel Exp. Heat Sink | -1/Access | Z-intel Myomer Leg | -1/Command | Z-intel Adv. Signal Interpreter | -1/Command | Z-intel Field Propulsion Array | -1/Command | Z-intel ECM Suite | -1/Command | Z-intel Graphene Brace | -1/Command | Z-intel Imp. Gyrokinetic Inverter | -1/Command | Z-intel Stasis Canceller | -1/Command | Z-intel Hvy. Disruptor Cannon | -1/Command | Z-intel Remote Force Field | -1/Command | Z-intel Disruptor Cannon | -1/Command | Z-intel Adv. Weight Redist. System | -1/Command | Z-intel Imp. Recalibrator | -1/Command | Z-intel Imp. Fusion Compressor | -1/Command | Z-intel Robot Schematics ------------------ K-01 Serf | -3/Testing | Z-intel S-43 Plague | -3/Testing | Z-intel R-10 Processor | -3/Testing | Z-intel A-02 Transporter | -3/Testing | Z-intel T-07 Excavator | -3/Testing | Z-intel M-36 Artificer | -3/Testing | Z-intel A-15 Conveyor | -3/Testing | Z-intel H-88 Terminator | -2/Quarantine | Z-intel G-73 Enforcer | -2/Quarantine | Z-intel X-77 Beamer | -2/Quarantine | Z-intel B-74 Champion | -2/Quarantine | Z-intel A-27 Freighter | -2/Section 7 | Z-intel C-55 Analyst | -2/Section 7 | Z-intel C-65 Expert | -2/Section 7 | Z-intel R-06 Scavenger | -2/Section 7 | Z-intel E-15 Imp | -2/Section 7 | Z-intel G-67 Veteran | -2/Section 7 | Z-intel O-32 Director | -2/Section 7 | Z-intel H-77 Assassin | -2/Section 7 | Z-intel L-61 Swordsman | -2/Section 7 | Z-intel Y-72 Warden | -2/Section 7 | Z-intel X-82 Rainmaker | -1/Command | Z-intel X-87 Electro | -1/Command | Z-intel P-80 Master | -1/Command | Z-intel Fabricated ------------ Biomechanical Wings | x1 | -4/Armory | Authchip Field Propulsion Array | x2 | -4/Armory | Authchip Alien Tech Used ----------------- Core Expander Integrated Dissipator Core Reset Matrix Integrated Thermoelectric Network Integrated Reactor Core Cannon Microwarp Drive LRC Boosters Integrity Redistributor Transdimensional Reconstructor High-powered Transdimensional Reconstructor Subatomic Replicator Achievements -------------- None Challenges ------------ None Game ------ Seed BackupRecyclingInsulator Manual? 0 Play Time 04:05:45 Cumulative 902.4 hours Start 2023.04.01 @ 11:51:15 End 2023.04.01 @ 18:31:14 Sessions 1 Manual Loads 0 Difficulty Rogue Special Mode None Game No. 408 Rogue 407 Adventurer 1 Explorer 0 Win Type 6 Total 133 Types 32/12/20/4/2/1/57/3/2 Lore% 100 Gallery% 99 Achievement% 92 Wizard Run 0 Options --------- ASCII 1 Keyboard 1 Movement Numpad Keybinds 0 Fullscreen 0 Font 18/Smallcaps Map View 76x50 Tactical HUD 1 Map Filters NONE Filters NONE Steam 1 RUN: f823d77c-d8ac-4160-b5e7-4a967392f966